Workbook

Sheet INTRO
B2: Joint request for selected PC medicines v.3.1
B4: As part of global efforts to accelerate expansion of preventive chemotherapy (PC) for control and elimination of lymphatic filariasis, schistosomiasis and soil-transmitted helminthiases, the World Health Organization (WHO) facilitates the supply of albendazole 400 mg tablets (GSK) to national lymphatic filariasis elimination programmes and national soil-transmitted helminth control programmes; diethylcarbamazine citrate 100 mg tablets (Eisai) to national lymphatic filariasis elimination programmes; mebendazole 500 mg tablets (J&J) for national soil-transmitted helminth control programmes; and praziquantel 600 mg tablets (Merck KGaA) for school-age children to national schistosomiasis control programmes. WHO also collaborates to supply ivermectin 3 mg tablets (Merck) for onchocerciasis and lymphatic filariasis donation programmes. This Excel-based tool is designed to assist countries in quantifying the number of tablets of relevant PC medicines required to reach the planned target population and districts for the year of request. Output of the tool is a joint request for PC medicines, which can be printed, signed and submitted to WHO to request these medicines.
B6: Structure of the application (worksheets):
B8: INTRO | C8: This worksheet includes guides on how to complete the joint request for selected PC medicines and information about the status of PC for endemic diseases in the country.
B9: COUNTRY_INFO | C9: This worksheet includes information about administrative structure of the country, population by age group, status of endemicity for each disease, population requiring PC and planned interventions.
B10: DEC, ALB_MBD, PZQ and IVM | C10: These worksheets include information about endemic districts targeted for treatment with specified PC medicines, treatment plan, and number of tablets required and requested.
B11: SUMMARY | C11: This worksheet includes summary of number of tablets requested, information about stock, and date for submission of requested medicines. Before generating the report (run macros) please select the medicine for which the report is needed. Follow the same rule to see the number of people to be treated for the specific disease. This worksheet should be printed and submitted as a joint request for selected PC medicines (see the instruction for submission in the SUMMARY worksheet).
B13: Instruction for data entry
B15: Most of the cells in the above-mentioned worksheets include formula that are calculated automatically according to the treatment policy recommended by WHO for each disease. See the link http://www.who.int/neglected_diseases/preventive_chemotherapy/pct_manual/en/index.html
B17: Please enter your data into the cells according to their colour code:
C19: White - cell is not protected. Please enter the value of the requested indicator.
C21: Yellow - cell is protected and includes name of indicator. No data entry required.
C23: Orange - cell is not protected and includes a drop-down menu. Please select the value from the drop-down list.
C26: Green - cell is not protected and includes formula. Please change the value only if your data are different from those that are calculated automatically.
C29: Blue - cell is protected and includes formula. No data entry required.
B31: Country data
B33: COUNTRY | E33: Sierra Leone
B35: Year for request of the medicine | E35: 2021
B37: Is country endemic for lymphatic filariasis (LF)? | E37: Endemic
B39: Is country endemic for onchocerciasis (ONCHO)? | E39: Endemic
B41: Is country endemic for soil-transmitted helminthiases (STH)? | E41: Endemic
B43: Is country endemic for schistosomiasis (SCH)? | E43: Endemic
B45: How many administrative units in the country? | E45: 16
B47: If demographical data at the second administrative level are not available by age group, please enter the proportion (%) of population by age group in the country. If data are available, please leave these cells blank.
B48: 0-59 months | C48: Preschool-age children (PreSAC) | E48: 0.0853341206
B49: 5-14 years age | C49: School-age children (SAC) | E49: 0.2581868964
B50: 15 years + | C50: Adults | E50: 0.5965638647

Sheet COUNTRY_INFO
A1: COUNTRY INFORMATION
A2: Administrative structure, population by age group, status of endemicity and planned interventions
A4: TOTAL | D4: =SUM(D$9:D$1000) -> 8785135.586 | E4: =SUM(E$9:E$1000) -> 749673 | F4: =SUM(F$9:F$1000) -> 2268208 | G4: =SUM(G$9:G$1000) -> 5240894 | L4: =SUM(L$9:L$1000) -> 3344473.627 | M4: =SUM(M$9:M$1000) -> 6654958 | N4: =SUM(N$9:N$1000) -> 2806817 | O4: =SUM(O$9:O$1000) -> 3141384.77
A6: Country administrative structure | D6: Population | H6: Endemicity | L6: Population requiring PC | P6: Number of treatment rounds planned for the year | T6: Criteria to apply for IVM+DEC+ALB therapy | U6: Epidemiological surveys planned for the year
A7: Country | B7: Province/State | C7: District | D7: Total | E7: PreSAC | F7: SAC | G7: Adults | H7: LF | I7: Oncho | J7: STH | K7: SCH | L7: LF | M7: Oncho | N7: STH | O7: SCH | P7: LF | Q7: Oncho | R7: STH | S7: SCH | T7: LF | U7: LF | V7: Oncho | W7: STH | X7: SCH | Y7: IU_ID | Z7: IU_NAME
A9: =IF(INTRO!$E$33<>0,INTRO!$E$33, " ") -> Sierra Leone | B9: SOUHTERN | C9: BO | D9: 625073 | E9: =IF(INTRO!$E$48="","",ROUND($D9*INTRO!$E$48,0)) -> 53340 | F9: =IF(INTRO!$E$49="","",ROUND($D9*INTRO!$E$49,0)) -> 161386 | G9: =IF(INTRO!$E$50="","",ROUND($D9*INTRO!$E$50,0)) -> 372896 | H9: 99 | I9: 1 | J9: 2 | K9: 2 | L9: =IF(INTRO!$E$37="Endemic",IF($H9>0,IF($H9=4,"Unknown",IF($H9=99,"Stopped",$D9)),0),"Not required") -> Stopped | M9: =IF(INTRO!$E$39="Endemic", IF($I9>0, IF($I9=4,"Unknown",IF($I9=99,"Stopped",$D9)), 0),"Not required") -> 625073 | N9: =IF(INTRO!$E$41="Endemic", IF(AND($J9>1,$J9<5), IF($J9=4, "Unknown", E9+F9), 0),"Not required") -> 214726 | O9: =IF(INTRO!$E$43="Endemic", IF(AND($K9>0,$K9<5), IF($K9=4,"Unknown", IF($K9=1, $F9*0.33, IF($K9=2, $F9*0.5+$G9*0.2, SUM(F9:G9)))), 0),"Not required") -> 155272.2 | P9: 0 | Q9: 1 | R9: 1 | S9: 1 | U9: TAS | W9: Yes | X9: Yes | Y9: 42261 | Z9: BO
A10: =IF(INTRO!$E$33<>0,INTRO!$E$33, " ") -> Sierra Leone | B10: SOUHTERN | C10: MOYAMBA | D10: 376850 | E10: =IF(INTRO!$E$48="","",ROUND($D10*INTRO!$E$48,0)) -> 32158 | F10: =IF(INTRO!$E$49="","",ROUND($D10*INTRO!$E$49,0)) -> 97298 | G10: =IF(INTRO!$E$50="","",ROUND($D10*INTRO!$E$50,0)) -> 224815 | H10: 99 | I10: 1 | J10: 2 | K10: 1 | L10: =IF(INTRO!$E$37="Endemic",IF($H10>0,IF($H10=4,"Unknown",IF($H10=99,"Stopped",$D10)),0),"Not required") -> Stopped | M10: =IF(INTRO!$E$39="Endemic", IF($I10>0, IF($I10=4,"Unknown",IF($I10=99,"Stopped",$D10)), 0),"Not required") -> 376850 | N10: =IF(INTRO!$E$41="Endemic", IF(AND($J10>1,$J10<5), IF($J10=4, "Unknown", E10+F10), 0),"Not required") -> 129456 | O10: =IF(INTRO!$E$43="Endemic", IF(AND($K10>0,$K10<5), IF($K10=4,"Unknown", IF($K10=1, $F10*0.33, IF($K10=2, $F10*0.5+$G10*0.2, SUM(F10:G10)))), 0),"Not required") -> 32108.34 | P10: 0 | Q10: 1 | R10: 1 | S10: 0 | U10: TAS | W10: Yes | Y10: 42263 | Z10: MOYAMBA
A11: =IF(INTRO!$E$33<>0,INTRO!$E$33, " ") -> Sierra Leone | B11: SOUHTERN | C11: PUJEHUN | D11: 372654 | E11: =IF(INTRO!$E$48="","",ROUND($D11*INTRO!$E$48,0)) -> 31800 | F11: =IF(INTRO!$E$49="","",ROUND($D11*INTRO!$E$49,0)) -> 96214 | G11: =IF(INTRO!$E$50="","",ROUND($D11*INTRO!$E$50,0)) -> 222312 | H11: 99 | I11: 1 | J11: 2 | K11: 1 | L11: =IF(INTRO!$E$37="Endemic",IF($H11>0,IF($H11=4,"Unknown",IF($H11=99,"Stopped",$D11)),0),"Not required") -> Stopped | M11: =IF(INTRO!$E$39="Endemic", IF($I11>0, IF($I11=4,"Unknown",IF($I11=99,"Stopped",$D11)), 0),"Not required") -> 372654 | N11: =IF(INTRO!$E$41="Endemic", IF(AND($J11>1,$J11<5), IF($J11=4, "Unknown", E11+F11), 0),"Not required") -> 128014 | O11: =IF(INTRO!$E$43="Endemic", IF(AND($K11>0,$K11<5), IF($K11=4,"Unknown", IF($K11=1, $F11*0.33, IF($K11=2, $F11*0.5+$G11*0.2, SUM(F11:G11)))), 0),"Not required") -> 31750.62 | P11: 0 | Q11: 1 | R11: 1 | S11: 0 | U11: TAS | W11: Yes | Y11: 42264 | Z11: PUJEHUN
A12: =IF(INTRO!$E$33<>0,INTRO!$E$33, " ") -> Sierra Leone | B12: SOUHTERN | C12: BONTHE | D12: 209025 | E12: =IF(INTRO!$E$48="","",ROUND($D12*INTRO!$E$48,0)) -> 17837 | F12: =IF(INTRO!$E$49="","",ROUND($D12*INTRO!$E$49,0)) -> 53968 | G12: =IF(INTRO!$E$50="","",ROUND($D12*INTRO!$E$50,0)) -> 124697 | H12: 99 | I12: 1 | J12: 2 | K12: 0 | L12: =IF(INTRO!$E$37="Endemic",IF($H12>0,IF($H12=4,"Unknown",IF($H12=99,"Stopped",$D12)),0),"Not required") -> Stopped | M12: =IF(INTRO!$E$39="Endemic", IF($I12>0, IF($I12=4,"Unknown",IF($I12=99,"Stopped",$D12)), 0),"Not required") -> 209025 | N12: =IF(INTRO!$E$41="Endemic", IF(AND($J12>1,$J12<5), IF($J12=4, "Unknown", E12+F12), 0),"Not required") -> 71805 | O12: =IF(INTRO!$E$43="Endemic", IF(AND($K12>0,$K12<5), IF($K12=4,"Unknown", IF($K12=1, $F12*0.33, IF($K12=2, $F12*0.5+$G12*0.2, SUM(F12:G12)))), 0),"Not required") -> 0 | P12: 0 | Q12: 1 | R12: 1 | S12: 0 | U12: TAS | W12: Yes | Y12: 42262 | Z12: BONTHE
A13: =IF(INTRO!$E$33<>0,INTRO!$E$33, " ") -> Sierra Leone | B13: EASTERN | C13: KENEMA | D13: 822662 | E13: =IF(INTRO!$E$48="","",ROUND($D13*INTRO!$E$48,0)) -> 70201 | F13: =IF(INTRO!$E$49="","",ROUND($D13*INTRO!$E$49,0)) -> 212401 | G13: =IF(INTRO!$E$50="","",ROUND($D13*INTRO!$E$50,0)) -> 490770 | H13: 1 | I13: 1 | J13: 2 | K13: 3 | L13: =IF(INTRO!$E$37="Endemic",IF($H13>0,IF($H13=4,"Unknown",IF($H13=99,"Stopped",$D13)),0),"Not required") -> 822662 | M13: =IF(INTRO!$E$39="Endemic", IF($I13>0, IF($I13=4,"Unknown",IF($I13=99,"Stopped",$D13)), 0),"Not required") -> 822662 | N13: =IF(INTRO!$E$41="Endemic", IF(AND($J13>1,$J13<5), IF($J13=4, "Unknown", E13+F13), 0),"Not required") -> 282602 | O13: =IF(INTRO!$E$43="Endemic", IF(AND($K13>0,$K13<5), IF($K13=4,"Unknown", IF($K13=1, $F13*0.33, IF($K13=2, $F13*0.5+$G13*0.2, SUM(F13:G13)))), 0),"Not required") -> 703171 | P13: 1 | Q13: 1 | R13: 1 | S13: 1 | U13: SS/SC | W13: Yes | X13: Yes | Y13: 42254 | Z13: KENEMA
A14: =IF(INTRO!$E$33<>0,INTRO!$E$33, " ") -> Sierra Leone | B14: EASTERN | C14: KONO | D14: 614414 | E14: =IF(INTRO!$E$48="","",ROUND($D14*INTRO!$E$48,0)) -> 52430 | F14: =IF(INTRO!$E$49="","",ROUND($D14*INTRO!$E$49,0)) -> 158634 | G14: =IF(INTRO!$E$50="","",ROUND($D14*INTRO!$E$50,0)) -> 366537 | H14: 99 | I14: 1 | J14: 1 | K14: 2 | L14: =IF(INTRO!$E$37="Endemic",IF($H14>0,IF($H14=4,"Unknown",IF($H14=99,"Stopped",$D14)),0),"Not required") -> Stopped | M14: =IF(INTRO!$E$39="Endemic", IF($I14>0, IF($I14=4,"Unknown",IF($I14=99,"Stopped",$D14)), 0),"Not required") -> 614414 | N14: =IF(INTRO!$E$41="Endemic", IF(AND($J14>1,$J14<5), IF($J14=4, "Unknown", E14+F14), 0),"Not required") -> 0 | O14: =IF(INTRO!$E$43="Endemic", IF(AND($K14>0,$K14<5), IF($K14=4,"Unknown", IF($K14=1, $F14*0.33, IF($K14=2, $F14*0.5+$G14*0.2, SUM(F14:G14)))), 0),"Not required") -> 152624.4 | P14: 0 | Q14: 1 | R14: 0 | S14: 1 | U14: TAS | W14: Yes | X14: Yes | Y14: 42255 | Z14: KONO
A15: =IF(INTRO!$E$33<>0,INTRO!$E$33, " ") -> Sierra Leone | B15: EASTERN | C15: KAILAHUN | D15: 758380 | E15: =IF(INTRO!$E$48="","",ROUND($D15*INTRO!$E$48,0)) -> 64716 | F15: =IF(INTRO!$E$49="","",ROUND($D15*INTRO!$E$49,0)) -> 195804 | G15: =IF(INTRO!$E$50="","",ROUND($D15*INTRO!$E$50,0)) -> 452422 | H15: 1 | I15: 1 | J15: 2 | K15: 3 | L15: =IF(INTRO!$E$37="Endemic",IF($H15>0,IF($H15=4,"Unknown",IF($H15=99,"Stopped",$D15)),0),"Not required") -> 758380 | M15: =IF(INTRO!$E$39="Endemic", IF($I15>0, IF($I15=4,"Unknown",IF($I15=99,"Stopped",$D15)), 0),"Not required") -> 758380 | N15: =IF(INTRO!$E$41="Endemic", IF(AND($J15>1,$J15<5), IF($J15=4, "Unknown", E15+F15), 0),"Not required") -> 260520 | O15: =IF(INTRO!$E$43="Endemic", IF(AND($K15>0,$K15<5), IF($K15=4,"Unknown", IF($K15=1, $F15*0.33, IF($K15=2, $F15*0.5+$G15*0.2, SUM(F15:G15)))), 0),"Not required") -> 648226 | P15: 1 | Q15: 1 | R15: 1 | S15: 1 | U15: SS/SC | W15: Yes | X15: Yes | Y15: 42253 | Z15: KAILAHUN
A16: =IF(INTRO!$E$33<>0,INTRO!$E$33, " ") -> Sierra Leone | B16: NORTHERN | C16: BOMBALI | D16: 692485 | E16: =IF(INTRO!$E$48="","",ROUND($D16*INTRO!$E$48,0)) -> 59093 | F16: =IF(INTRO!$E$49="","",ROUND($D16*INTRO!$E$49,0)) -> 178791 | G16: =IF(INTRO!$E$50="","",ROUND($D16*INTRO!$E$50,0)) -> 413112 | H16: 1 | I16: 1 | J16: 2 | K16: 2 | L16: =IF(INTRO!$E$37="Endemic",IF($H16>0,IF($H16=4,"Unknown",IF($H16=99,"Stopped",$D16)),0),"Not required") -> 692485 | M16: =IF(INTRO!$E$39="Endemic", IF($I16>0, IF($I16=4,"Unknown",IF($I16=99,"Stopped",$D16)), 0),"Not required") -> 692485 | N16: =IF(INTRO!$E$41="Endemic", IF(AND($J16>1,$J16<5), IF($J16=4, "Unknown", E16+F16), 0),"Not required") -> 237884 | O16: =IF(INTRO!$E$43="Endemic", IF(AND($K16>0,$K16<5), IF($K16=4,"Unknown", IF($K16=1, $F16*0.33, IF($K16=2, $F16*0.5+$G16*0.2, SUM(F16:G16)))), 0),"Not required") -> 172017.9 | P16: 1 | Q16: 1 | R16: 1 | S16: 1 | U16: SS/SC | W16: Yes | X16: Yes | Y16: 42256 | Z16: BOMBALI
A17: =IF(INTRO!$E$33<>0,INTRO!$E$33, " ") -> Sierra Leone | B17: NORTHERN | C17: TONKOLILI | D17: 578814 | E17: =IF(INTRO!$E$48="","",ROUND($D17*INTRO!$E$48,0)) -> 49393 | F17: =IF(INTRO!$E$49="","",ROUND($D17*INTRO!$E$49,0)) -> 149442 | G17: =IF(INTRO!$E$50="","",ROUND($D17*INTRO!$E$50,0)) -> 345300 | H17: 99 | I17: 1 | J17: 2 | K17: 2 | L17: =IF(INTRO!$E$37="Endemic",IF($H17>0,IF($H17=4,"Unknown",IF($H17=99,"Stopped",$D17)),0),"Not required") -> Stopped | M17: =IF(INTRO!$E$39="Endemic", IF($I17>0, IF($I17=4,"Unknown",IF($I17=99,"Stopped",$D17)), 0),"Not required") -> 578814 | N17: =IF(INTRO!$E$41="Endemic", IF(AND($J17>1,$J17<5), IF($J17=4, "Unknown", E17+F17), 0),"Not required") -> 198835 | O17: =IF(INTRO!$E$43="Endemic", IF(AND($K17>0,$K17<5), IF($K17=4,"Unknown", IF($K17=1, $F17*0.33, IF($K17=2, $F17*0.5+$G17*0.2, SUM(F17:G17)))), 0),"Not required") -> 143781 | P17: 0 | Q17: 1 | R17: 1 | S17: 1 | U17: TAS | W17: Yes | X17: Yes | Y17: 42260 | Z17: TONKOLILI
A18: =IF(INTRO!$E$33<>0,INTRO!$E$33, " ") -> Sierra Leone | B18: NORTHERN | C18: PORT LOKO | D18: 669505 | E18: =IF(INTRO!$E$48="","",ROUND($D18*INTRO!$E$48,0)) -> 57132 | F18: =IF(INTRO!$E$49="","",ROUND($D18*INTRO!$E$49,0)) -> 172857 | G18: =IF(INTRO!$E$50="","",ROUND($D18*INTRO!$E$50,0)) -> 399402 | H18: 99 | I18: 1 | J18: 2 | K18: 2 | L18: =IF(INTRO!$E$37="Endemic",IF($H18>0,IF($H18=4,"Unknown",IF($H18=99,"Stopped",$D18)),0),"Not required") -> Stopped | M18: =IF(INTRO!$E$39="Endemic", IF($I18>0, IF($I18=4,"Unknown",IF($I18=99,"Stopped",$D18)), 0),"Not required") -> 669505 | N18: =IF(INTRO!$E$41="Endemic", IF(AND($J18>1,$J18<5), IF($J18=4, "Unknown", E18+F18), 0),"Not required") -> 229989 | O18: =IF(INTRO!$E$43="Endemic", IF(AND($K18>0,$K18<5), IF($K18=4,"Unknown", IF($K18=1, $F18*0.33, IF($K18=2, $F18*0.5+$G18*0.2, SUM(F18:G18)))), 0),"Not required") -> 166308.9 | P18: 0 | Q18: 1 | R18: 1 | S18: 0 | U18: TAS | W18: Yes | Y18: 42259 | Z18: PORT LOKO
A19: =IF(INTRO!$E$33<>0,INTRO!$E$33, " ") -> Sierra Leone | B19: NORTHERN | C19: KOINADUGU | D19: 538285 | E19: =IF(INTRO!$E$48="","",ROUND($D19*INTRO!$E$48,0)) -> 45934 | F19: =IF(INTRO!$E$49="","",ROUND($D19*INTRO!$E$49,0)) -> 138978 | G19: =IF(INTRO!$E$50="","",ROUND($D19*INTRO!$E$50,0)) -> 321121 | H19: 1 | I19: 1 | J19: 3 | K19: 3 | L19: =IF(INTRO!$E$37="Endemic",IF($H19>0,IF($H19=4,"Unknown",IF($H19=99,"Stopped",$D19)),0),"Not required") -> 538285 | M19: =IF(INTRO!$E$39="Endemic", IF($I19>0, IF($I19=4,"Unknown",IF($I19=99,"Stopped",$D19)), 0),"Not required") -> 538285 | N19: =IF(INTRO!$E$41="Endemic", IF(AND($J19>1,$J19<5), IF($J19=4, "Unknown", E19+F19), 0),"Not required") -> 184912 | O19: =IF(INTRO!$E$43="Endemic", IF(AND($K19>0,$K19<5), IF($K19=4,"Unknown", IF($K19=1, $F19*0.33, IF($K19=2, $F19*0.5+$G19*0.2, SUM(F19:G19)))), 0),"Not required") -> 460099 | P19: 1 | Q19: 1 | R19: 2 | S19: 1 | U19: SS/SC | W19: Yes | X19: Yes | Y19: 42258 | Z19: KOINADUGU
A20: =IF(INTRO!$E$33<>0,INTRO!$E$33, " ") -> Sierra Leone | B20: NORTHERN | C20: KAMBIA | D20: 396811 | E20: =IF(INTRO!$E$48="","",ROUND($D20*INTRO!$E$48,0)) -> 33862 | F20: =IF(INTRO!$E$49="","",ROUND($D20*INTRO!$E$49,0)) -> 102451 | G20: =IF(INTRO!$E$50="","",ROUND($D20*INTRO!$E$50,0)) -> 236723 | H20: 99 | I20: 1 | J20: 2 | K20: 1 | L20: =IF(INTRO!$E$37="Endemic",IF($H20>0,IF($H20=4,"Unknown",IF($H20=99,"Stopped",$D20)),0),"Not required") -> Stopped | M20: =IF(INTRO!$E$39="Endemic", IF($I20>0, IF($I20=4,"Unknown",IF($I20=99,"Stopped",$D20)), 0),"Not required") -> 396811 | N20: =IF(INTRO!$E$41="Endemic", IF(AND($J20>1,$J20<5), IF($J20=4, "Unknown", E20+F20), 0),"Not required") -> 136313 | O20: =IF(INTRO!$E$43="Endemic", IF(AND($K20>0,$K20<5), IF($K20=4,"Unknown", IF($K20=1, $F20*0.33, IF($K20=2, $F20*0.5+$G20*0.2, SUM(F20:G20)))), 0),"Not required") -> 33808.83 | P20: 0 | Q20: 1 | R20: 1 | S20: 0 | U20: TAS | W20: Yes | Y20: 42257 | Z20: KAMBIA
A21: =IF(INTRO!$E$33<>0,INTRO!$E$33, " ") -> Sierra Leone | B21: WESTERN | C21: WESTERN RURAL | D21: 532661.6272 | E21: =IF(INTRO!$E$48="","",ROUND($D21*INTRO!$E$48,0)) -> 45454 | F21: =IF(INTRO!$E$49="","",ROUND($D21*INTRO!$E$49,0)) -> 137526 | G21: =IF(INTRO!$E$50="","",ROUND($D21*INTRO!$E$50,0)) -> 317767 | H21: 1 | I21: 0 | J21: 2 | K21: 1 | L21: =IF(INTRO!$E$37="Endemic",IF($H21>0,IF($H21=4,"Unknown",IF($H21=99,"Stopped",$D21)),0),"Not required") -> 532661.6272 | M21: =IF(INTRO!$E$39="Endemic", IF($I21>0, IF($I21=4,"Unknown",IF($I21=99,"Stopped",$D21)), 0),"Not required") -> 0 | N21: =IF(INTRO!$E$41="Endemic", IF(AND($J21>1,$J21<5), IF($J21=4, "Unknown", E21+F21), 0),"Not required") -> 182980 | O21: =IF(INTRO!$E$43="Endemic", IF(AND($K21>0,$K21<5), IF($K21=4,"Unknown", IF($K21=1, $F21*0.33, IF($K21=2, $F21*0.5+$G21*0.2, SUM(F21:G21)))), 0),"Not required") -> 45383.58 | P21: 1 | Q21: 0 | R21: 1 | S21: 0 | U21: SS/SC | W21: Yes | Y21: 42265 | Z21: WESTERN RURAL
A22: =IF(INTRO!$E$33<>0,INTRO!$E$33, " ") -> Sierra Leone | B22: WESTERN | C22: WESTERN URBAN | D22: 1597515.959 | E22: =IF(INTRO!$E$48="","",ROUND($D22*INTRO!$E$48,0)) -> 136323 | F22: =IF(INTRO!$E$49="","",ROUND($D22*INTRO!$E$49,0)) -> 412458 | G22: =IF(INTRO!$E$50="","",ROUND($D22*INTRO!$E$50,0)) -> 953020 | H22: 99 | I22: 0 | J22: 2 | K22: 2 | L22: =IF(INTRO!$E$37="Endemic",IF($H22>0,IF($H22=4,"Unknown",IF($H22=99,"Stopped",$D22)),0),"Not required") -> Stopped | M22: =IF(INTRO!$E$39="Endemic", IF($I22>0, IF($I22=4,"Unknown",IF($I22=99,"Stopped",$D22)), 0),"Not required") -> 0 | N22: =IF(INTRO!$E$41="Endemic", IF(AND($J22>1,$J22<5), IF($J22=4, "Unknown", E22+F22), 0),"Not required") -> 548781 | O22: =IF(INTRO!$E$43="Endemic", IF(AND($K22>0,$K22<5), IF($K22=4,"Unknown", IF($K22=1, $F22*0.33, IF($K22=2, $F22*0.5+$G22*0.2, SUM(F22:G22)))), 0),"Not required") -> 396833 | P22: 0 | Q22: 0 | R22: 1 | S22: 0 | U22: TAS | W22: Yes | Y22: 42266 | Z22: WESTERN URBAN

Sheet DEC (hidden)
A1: Diethylcarbamazine citrate (DEC)
A2: Administrative structure, eligible population by age group, treatment plan and information about tablets
A4: TOTAL | D4: =SUM(D$9:D$1000) -> 0 | E4: =SUM(E$9:E$1000) -> 0 | F4: =SUM(F$9:F$1000) -> 0 | G4: =SUM(G$9:G$1000) -> 0 | I4: =SUM(I$9:I$1000) -> 0 | J4: =SUM(J$9:J$1000) -> 0 | K4: =SUM(K$9:K$1000) -> 0 | L4: =SUM(L$9:L$1000) -> 0 | M4: =SUM(M$9:M$1000) -> 0
A6: Country administrative structure | D6: Population requiring treatment with DEC | H6: Treatment plan | I6: Target population | J6: Diethylcarbamazine citrate (DEC)
A7: Country | B7: Province/State | C7: District | D7: PreSAC | E7: SAC | F7: Adults | G7: Total | H7: LF | I7: LF | J7: Total required | K7: Remaining in stock | L7: Tablets to be procured | M7: Bottle (100 mg) 1000 tablets
A9: =IF(INTRO!$E$39<>"Non-endemic", " ", IF(INTRO!$E$37="Non-endemic"," ", IF(COUNTRY_INFO!A9=0," ",COUNTRY_INFO!A9))) ->  | B9: =IF(INTRO!$E$39<>"Non-endemic", " ", IF(INTRO!$E$37="Non-endemic"," ", IF(COUNTRY_INFO!B9=0," ",COUNTRY_INFO!B9))) ->  | C9: =IF(INTRO!$E$39<>"Non-endemic", " ", IF(INTRO!$E$37="Non-endemic"," ", IF(COUNTRY_INFO!C9=0," ",COUNTRY_INFO!C9))) ->  | D9: =IF(INTRO!$E$39<>"Non-endemic", 0, IF(INTRO!$E$37="Non-endemic",0,IF(COUNTRY_INFO!$H9=1,COUNTRY_INFO!E9,0))) -> 0 | E9: =IF(INTRO!$E$39<>"Non-endemic", 0, IF(INTRO!$E$37="Non-endemic",0,IF(COUNTRY_INFO!$H9=1,COUNTRY_INFO!F9,0))) -> 0 | F9: =IF(INTRO!$E$39<>"Non-endemic", 0, IF(INTRO!$E$37="Non-endemic",0,IF(COUNTRY_INFO!$H9=1,COUNTRY_INFO!G9,0))) -> 0 | G9: =SUM(D9:F9) -> 0 | H9: =IF(INTRO!$E$39="Non-endemic",IF(INTRO!$E$37="Non-endemic","Not required",COUNTRY_INFO!P9),"Treat with IVM") -> Treat with IVM | I9: =IF(H9=1,G9,0) -> 0 | J9: =IF(I9>0,I9*2.5,0) -> 0 | L9: =IF($J9>$K9,$J9-$K9,0) -> 0 | M9: =ROUNDUP($J9/1000,0) -> 0
A10: =IF(INTRO!$E$39<>"Non-endemic", " ", IF(INTRO!$E$37="Non-endemic"," ", IF(COUNTRY_INFO!A10=0," ",COUNTRY_INFO!A10))) ->  | B10: =IF(INTRO!$E$39<>"Non-endemic", " ", IF(INTRO!$E$37="Non-endemic"," ", IF(COUNTRY_INFO!B10=0," ",COUNTRY_INFO!B10))) ->  | C10: =IF(INTRO!$E$39<>"Non-endemic", " ", IF(INTRO!$E$37="Non-endemic"," ", IF(COUNTRY_INFO!C10=0," ",COUNTRY_INFO!C10))) ->  | D10: =IF(INTRO!$E$39<>"Non-endemic", 0, IF(INTRO!$E$37="Non-endemic",0,IF(COUNTRY_INFO!$H10=1,COUNTRY_INFO!E10,0))) -> 0 | E10: =IF(INTRO!$E$39<>"Non-endemic", 0, IF(INTRO!$E$37="Non-endemic",0,IF(COUNTRY_INFO!$H10=1,COUNTRY_INFO!F10,0))) -> 0 | F10: =IF(INTRO!$E$39<>"Non-endemic", 0, IF(INTRO!$E$37="Non-endemic",0,IF(COUNTRY_INFO!$H10=1,COUNTRY_INFO!G10,0))) -> 0 | G10: 0 | H10: =IF(INTRO!$E$39="Non-endemic",IF(INTRO!$E$37="Non-endemic","Not required",COUNTRY_INFO!P10),"Treat with IVM") -> Treat with IVM | I10: 0 | J10: 0 | L10: 0 | M10: 0
A11: =IF(INTRO!$E$39<>"Non-endemic", " ", IF(INTRO!$E$37="Non-endemic"," ", IF(COUNTRY_INFO!A11=0," ",COUNTRY_INFO!A11))) ->  | B11: =IF(INTRO!$E$39<>"Non-endemic", " ", IF(INTRO!$E$37="Non-endemic"," ", IF(COUNTRY_INFO!B11=0," ",COUNTRY_INFO!B11))) ->  | C11: =IF(INTRO!$E$39<>"Non-endemic", " ", IF(INTRO!$E$37="Non-endemic"," ", IF(COUNTRY_INFO!C11=0," ",COUNTRY_INFO!C11))) ->  | D11: =IF(INTRO!$E$39<>"Non-endemic", 0, IF(INTRO!$E$37="Non-endemic",0,IF(COUNTRY_INFO!$H11=1,COUNTRY_INFO!E11,0))) -> 0 | E11: =IF(INTRO!$E$39<>"Non-endemic", 0, IF(INTRO!$E$37="Non-endemic",0,IF(COUNTRY_INFO!$H11=1,COUNTRY_INFO!F11,0))) -> 0 | F11: =IF(INTRO!$E$39<>"Non-endemic", 0, IF(INTRO!$E$37="Non-endemic",0,IF(COUNTRY_INFO!$H11=1,COUNTRY_INFO!G11,0))) -> 0 | G11: 0 | H11: =IF(INTRO!$E$39="Non-endemic",IF(INTRO!$E$37="Non-endemic","Not required",COUNTRY_INFO!P11),"Treat with IVM") -> Treat with IVM | I11: 0 | J11: 0 | L11: 0 | M11: 0
A12: =IF(INTRO!$E$39<>"Non-endemic", " ", IF(INTRO!$E$37="Non-endemic"," ", IF(COUNTRY_INFO!A12=0," ",COUNTRY_INFO!A12))) ->  | B12: =IF(INTRO!$E$39<>"Non-endemic", " ", IF(INTRO!$E$37="Non-endemic"," ", IF(COUNTRY_INFO!B12=0," ",COUNTRY_INFO!B12))) ->  | C12: =IF(INTRO!$E$39<>"Non-endemic", " ", IF(INTRO!$E$37="Non-endemic"," ", IF(COUNTRY_INFO!C12=0," ",COUNTRY_INFO!C12))) ->  | D12: =IF(INTRO!$E$39<>"Non-endemic", 0, IF(INTRO!$E$37="Non-endemic",0,IF(COUNTRY_INFO!$H12=1,COUNTRY_INFO!E12,0))) -> 0 | E12: =IF(INTRO!$E$39<>"Non-endemic", 0, IF(INTRO!$E$37="Non-endemic",0,IF(COUNTRY_INFO!$H12=1,COUNTRY_INFO!F12,0))) -> 0 | F12: =IF(INTRO!$E$39<>"Non-endemic", 0, IF(INTRO!$E$37="Non-endemic",0,IF(COUNTRY_INFO!$H12=1,COUNTRY_INFO!G12,0))) -> 0 | G12: 0 | H12: =IF(INTRO!$E$39="Non-endemic",IF(INTRO!$E$37="Non-endemic","Not required",COUNTRY_INFO!P12),"Treat with IVM") -> Treat with IVM | I12: 0 | J12: 0 | L12: 0 | M12: 0
A13: =IF(INTRO!$E$39<>"Non-endemic", " ", IF(INTRO!$E$37="Non-endemic"," ", IF(COUNTRY_INFO!A13=0," ",COUNTRY_INFO!A13))) ->  | B13: =IF(INTRO!$E$39<>"Non-endemic", " ", IF(INTRO!$E$37="Non-endemic"," ", IF(COUNTRY_INFO!B13=0," ",COUNTRY_INFO!B13))) ->  | C13: =IF(INTRO!$E$39<>"Non-endemic", " ", IF(INTRO!$E$37="Non-endemic"," ", IF(COUNTRY_INFO!C13=0," ",COUNTRY_INFO!C13))) ->  | D13: =IF(INTRO!$E$39<>"Non-endemic", 0, IF(INTRO!$E$37="Non-endemic",0,IF(COUNTRY_INFO!$H13=1,COUNTRY_INFO!E13,0))) -> 0 | E13: =IF(INTRO!$E$39<>"Non-endemic", 0, IF(INTRO!$E$37="Non-endemic",0,IF(COUNTRY_INFO!$H13=1,COUNTRY_INFO!F13,0))) -> 0 | F13: =IF(INTRO!$E$39<>"Non-endemic", 0, IF(INTRO!$E$37="Non-endemic",0,IF(COUNTRY_INFO!$H13=1,COUNTRY_INFO!G13,0))) -> 0 | G13: 0 | H13: =IF(INTRO!$E$39="Non-endemic",IF(INTRO!$E$37="Non-endemic","Not required",COUNTRY_INFO!P13),"Treat with IVM") -> Treat with IVM | I13: 0 | J13: 0 | L13: 0 | M13: 0
A14: =IF(INTRO!$E$39<>"Non-endemic", " ", IF(INTRO!$E$37="Non-endemic"," ", IF(COUNTRY_INFO!A14=0," ",COUNTRY_INFO!A14))) ->  | B14: =IF(INTRO!$E$39<>"Non-endemic", " ", IF(INTRO!$E$37="Non-endemic"," ", IF(COUNTRY_INFO!B14=0," ",COUNTRY_INFO!B14))) ->  | C14: =IF(INTRO!$E$39<>"Non-endemic", " ", IF(INTRO!$E$37="Non-endemic"," ", IF(COUNTRY_INFO!C14=0," ",COUNTRY_INFO!C14))) ->  | D14: =IF(INTRO!$E$39<>"Non-endemic", 0, IF(INTRO!$E$37="Non-endemic",0,IF(COUNTRY_INFO!$H14=1,COUNTRY_INFO!E14,0))) -> 0 | E14: =IF(INTRO!$E$39<>"Non-endemic", 0, IF(INTRO!$E$37="Non-endemic",0,IF(COUNTRY_INFO!$H14=1,COUNTRY_INFO!F14,0))) -> 0 | F14: =IF(INTRO!$E$39<>"Non-endemic", 0, IF(INTRO!$E$37="Non-endemic",0,IF(COUNTRY_INFO!$H14=1,COUNTRY_INFO!G14,0))) -> 0 | G14: 0 | H14: =IF(INTRO!$E$39="Non-endemic",IF(INTRO!$E$37="Non-endemic","Not required",COUNTRY_INFO!P14),"Treat with IVM") -> Treat with IVM | I14: 0 | J14: 0 | L14: 0 | M14: 0
A15: =IF(INTRO!$E$39<>"Non-endemic", " ", IF(INTRO!$E$37="Non-endemic"," ", IF(COUNTRY_INFO!A15=0," ",COUNTRY_INFO!A15))) ->  | B15: =IF(INTRO!$E$39<>"Non-endemic", " ", IF(INTRO!$E$37="Non-endemic"," ", IF(COUNTRY_INFO!B15=0," ",COUNTRY_INFO!B15))) ->  | C15: =IF(INTRO!$E$39<>"Non-endemic", " ", IF(INTRO!$E$37="Non-endemic"," ", IF(COUNTRY_INFO!C15=0," ",COUNTRY_INFO!C15))) ->  | D15: =IF(INTRO!$E$39<>"Non-endemic", 0, IF(INTRO!$E$37="Non-endemic",0,IF(COUNTRY_INFO!$H15=1,COUNTRY_INFO!E15,0))) -> 0 | E15: =IF(INTRO!$E$39<>"Non-endemic", 0, IF(INTRO!$E$37="Non-endemic",0,IF(COUNTRY_INFO!$H15=1,COUNTRY_INFO!F15,0))) -> 0 | F15: =IF(INTRO!$E$39<>"Non-endemic", 0, IF(INTRO!$E$37="Non-endemic",0,IF(COUNTRY_INFO!$H15=1,COUNTRY_INFO!G15,0))) -> 0 | G15: 0 | H15: =IF(INTRO!$E$39="Non-endemic",IF(INTRO!$E$37="Non-endemic","Not required",COUNTRY_INFO!P15),"Treat with IVM") -> Treat with IVM | I15: 0 | J15: 0 | L15: 0 | M15: 0
A16: =IF(INTRO!$E$39<>"Non-endemic", " ", IF(INTRO!$E$37="Non-endemic"," ", IF(COUNTRY_INFO!A16=0," ",COUNTRY_INFO!A16))) ->  | B16: =IF(INTRO!$E$39<>"Non-endemic", " ", IF(INTRO!$E$37="Non-endemic"," ", IF(COUNTRY_INFO!B16=0," ",COUNTRY_INFO!B16))) ->  | C16: =IF(INTRO!$E$39<>"Non-endemic", " ", IF(INTRO!$E$37="Non-endemic"," ", IF(COUNTRY_INFO!C16=0," ",COUNTRY_INFO!C16))) ->  | D16: =IF(INTRO!$E$39<>"Non-endemic", 0, IF(INTRO!$E$37="Non-endemic",0,IF(COUNTRY_INFO!$H16=1,COUNTRY_INFO!E16,0))) -> 0 | E16: =IF(INTRO!$E$39<>"Non-endemic", 0, IF(INTRO!$E$37="Non-endemic",0,IF(COUNTRY_INFO!$H16=1,COUNTRY_INFO!F16,0))) -> 0 | F16: =IF(INTRO!$E$39<>"Non-endemic", 0, IF(INTRO!$E$37="Non-endemic",0,IF(COUNTRY_INFO!$H16=1,COUNTRY_INFO!G16,0))) -> 0 | G16: 0 | H16: =IF(INTRO!$E$39="Non-endemic",IF(INTRO!$E$37="Non-endemic","Not required",COUNTRY_INFO!P16),"Treat with IVM") -> Treat with IVM | I16: 0 | J16: 0 | L16: 0 | M16: 0
A17: =IF(INTRO!$E$39<>"Non-endemic", " ", IF(INTRO!$E$37="Non-endemic"," ", IF(COUNTRY_INFO!A17=0," ",COUNTRY_INFO!A17))) ->  | B17: =IF(INTRO!$E$39<>"Non-endemic", " ", IF(INTRO!$E$37="Non-endemic"," ", IF(COUNTRY_INFO!B17=0," ",COUNTRY_INFO!B17))) ->  | C17: =IF(INTRO!$E$39<>"Non-endemic", " ", IF(INTRO!$E$37="Non-endemic"," ", IF(COUNTRY_INFO!C17=0," ",COUNTRY_INFO!C17))) ->  | D17: =IF(INTRO!$E$39<>"Non-endemic", 0, IF(INTRO!$E$37="Non-endemic",0,IF(COUNTRY_INFO!$H17=1,COUNTRY_INFO!E17,0))) -> 0 | E17: =IF(INTRO!$E$39<>"Non-endemic", 0, IF(INTRO!$E$37="Non-endemic",0,IF(COUNTRY_INFO!$H17=1,COUNTRY_INFO!F17,0))) -> 0 | F17: =IF(INTRO!$E$39<>"Non-endemic", 0, IF(INTRO!$E$37="Non-endemic",0,IF(COUNTRY_INFO!$H17=1,COUNTRY_INFO!G17,0))) -> 0 | G17: 0 | H17: =IF(INTRO!$E$39="Non-endemic",IF(INTRO!$E$37="Non-endemic","Not required",COUNTRY_INFO!P17),"Treat with IVM") -> Treat with IVM | I17: 0 | J17: 0 | L17: 0 | M17: 0
A18: =IF(INTRO!$E$39<>"Non-endemic", " ", IF(INTRO!$E$37="Non-endemic"," ", IF(COUNTRY_INFO!A18=0," ",COUNTRY_INFO!A18))) ->  | B18: =IF(INTRO!$E$39<>"Non-endemic", " ", IF(INTRO!$E$37="Non-endemic"," ", IF(COUNTRY_INFO!B18=0," ",COUNTRY_INFO!B18))) ->  | C18: =IF(INTRO!$E$39<>"Non-endemic", " ", IF(INTRO!$E$37="Non-endemic"," ", IF(COUNTRY_INFO!C18=0," ",COUNTRY_INFO!C18))) ->  | D18: =IF(INTRO!$E$39<>"Non-endemic", 0, IF(INTRO!$E$37="Non-endemic",0,IF(COUNTRY_INFO!$H18=1,COUNTRY_INFO!E18,0))) -> 0 | E18: =IF(INTRO!$E$39<>"Non-endemic", 0, IF(INTRO!$E$37="Non-endemic",0,IF(COUNTRY_INFO!$H18=1,COUNTRY_INFO!F18,0))) -> 0 | F18: =IF(INTRO!$E$39<>"Non-endemic", 0, IF(INTRO!$E$37="Non-endemic",0,IF(COUNTRY_INFO!$H18=1,COUNTRY_INFO!G18,0))) -> 0 | G18: 0 | H18: =IF(INTRO!$E$39="Non-endemic",IF(INTRO!$E$37="Non-endemic","Not required",COUNTRY_INFO!P18),"Treat with IVM") -> Treat with IVM | I18: 0 | J18: 0 | L18: 0 | M18: 0
A19: =IF(INTRO!$E$39<>"Non-endemic", " ", IF(INTRO!$E$37="Non-endemic"," ", IF(COUNTRY_INFO!A19=0," ",COUNTRY_INFO!A19))) ->  | B19: =IF(INTRO!$E$39<>"Non-endemic", " ", IF(INTRO!$E$37="Non-endemic"," ", IF(COUNTRY_INFO!B19=0," ",COUNTRY_INFO!B19))) ->  | C19: =IF(INTRO!$E$39<>"Non-endemic", " ", IF(INTRO!$E$37="Non-endemic"," ", IF(COUNTRY_INFO!C19=0," ",COUNTRY_INFO!C19))) ->  | D19: =IF(INTRO!$E$39<>"Non-endemic", 0, IF(INTRO!$E$37="Non-endemic",0,IF(COUNTRY_INFO!$H19=1,COUNTRY_INFO!E19,0))) -> 0 | E19: =IF(INTRO!$E$39<>"Non-endemic", 0, IF(INTRO!$E$37="Non-endemic",0,IF(COUNTRY_INFO!$H19=1,COUNTRY_INFO!F19,0))) -> 0 | F19: =IF(INTRO!$E$39<>"Non-endemic", 0, IF(INTRO!$E$37="Non-endemic",0,IF(COUNTRY_INFO!$H19=1,COUNTRY_INFO!G19,0))) -> 0 | G19: 0 | H19: =IF(INTRO!$E$39="Non-endemic",IF(INTRO!$E$37="Non-endemic","Not required",COUNTRY_INFO!P19),"Treat with IVM") -> Treat with IVM | I19: 0 | J19: 0 | L19: 0 | M19: 0
A20: =IF(INTRO!$E$39<>"Non-endemic", " ", IF(INTRO!$E$37="Non-endemic"," ", IF(COUNTRY_INFO!A20=0," ",COUNTRY_INFO!A20))) ->  | B20: =IF(INTRO!$E$39<>"Non-endemic", " ", IF(INTRO!$E$37="Non-endemic"," ", IF(COUNTRY_INFO!B20=0," ",COUNTRY_INFO!B20))) ->  | C20: =IF(INTRO!$E$39<>"Non-endemic", " ", IF(INTRO!$E$37="Non-endemic"," ", IF(COUNTRY_INFO!C20=0," ",COUNTRY_INFO!C20))) ->  | D20: =IF(INTRO!$E$39<>"Non-endemic", 0, IF(INTRO!$E$37="Non-endemic",0,IF(COUNTRY_INFO!$H20=1,COUNTRY_INFO!E20,0))) -> 0 | E20: =IF(INTRO!$E$39<>"Non-endemic", 0, IF(INTRO!$E$37="Non-endemic",0,IF(COUNTRY_INFO!$H20=1,COUNTRY_INFO!F20,0))) -> 0 | F20: =IF(INTRO!$E$39<>"Non-endemic", 0, IF(INTRO!$E$37="Non-endemic",0,IF(COUNTRY_INFO!$H20=1,COUNTRY_INFO!G20,0))) -> 0 | G20: 0 | H20: =IF(INTRO!$E$39="Non-endemic",IF(INTRO!$E$37="Non-endemic","Not required",COUNTRY_INFO!P20),"Treat with IVM") -> Treat with IVM | I20: 0 | J20: 0 | L20: 0 | M20: 0
A21: =IF(INTRO!$E$39<>"Non-endemic", " ", IF(INTRO!$E$37="Non-endemic"," ", IF(COUNTRY_INFO!A21=0," ",COUNTRY_INFO!A21))) ->  | B21: =IF(INTRO!$E$39<>"Non-endemic", " ", IF(INTRO!$E$37="Non-endemic"," ", IF(COUNTRY_INFO!B21=0," ",COUNTRY_INFO!B21))) ->  | C21: =IF(INTRO!$E$39<>"Non-endemic", " ", IF(INTRO!$E$37="Non-endemic"," ", IF(COUNTRY_INFO!C21=0," ",COUNTRY_INFO!C21))) ->  | D21: =IF(INTRO!$E$39<>"Non-endemic", 0, IF(INTRO!$E$37="Non-endemic",0,IF(COUNTRY_INFO!$H21=1,COUNTRY_INFO!E21,0))) -> 0 | E21: =IF(INTRO!$E$39<>"Non-endemic", 0, IF(INTRO!$E$37="Non-endemic",0,IF(COUNTRY_INFO!$H21=1,COUNTRY_INFO!F21,0))) -> 0 | F21: =IF(INTRO!$E$39<>"Non-endemic", 0, IF(INTRO!$E$37="Non-endemic",0,IF(COUNTRY_INFO!$H21=1,COUNTRY_INFO!G21,0))) -> 0 | G21: 0 | H21: =IF(INTRO!$E$39="Non-endemic",IF(INTRO!$E$37="Non-endemic","Not required",COUNTRY_INFO!P21),"Treat with IVM") -> Treat with IVM | I21: 0 | J21: 0 | L21: 0 | M21: 0
A22: =IF(INTRO!$E$39<>"Non-endemic", " ", IF(INTRO!$E$37="Non-endemic"," ", IF(COUNTRY_INFO!A22=0," ",COUNTRY_INFO!A22))) ->  | B22: =IF(INTRO!$E$39<>"Non-endemic", " ", IF(INTRO!$E$37="Non-endemic"," ", IF(COUNTRY_INFO!B22=0," ",COUNTRY_INFO!B22))) ->  | C22: =IF(INTRO!$E$39<>"Non-endemic", " ", IF(INTRO!$E$37="Non-endemic"," ", IF(COUNTRY_INFO!C22=0," ",COUNTRY_INFO!C22))) ->  | D22: =IF(INTRO!$E$39<>"Non-endemic", 0, IF(INTRO!$E$37="Non-endemic",0,IF(COUNTRY_INFO!$H22=1,COUNTRY_INFO!E22,0))) -> 0 | E22: =IF(INTRO!$E$39<>"Non-endemic", 0, IF(INTRO!$E$37="Non-endemic",0,IF(COUNTRY_INFO!$H22=1,COUNTRY_INFO!F22,0))) -> 0 | F22: =IF(INTRO!$E$39<>"Non-endemic", 0, IF(INTRO!$E$37="Non-endemic",0,IF(COUNTRY_INFO!$H22=1,COUNTRY_INFO!G22,0))) -> 0 | G22: 0 | H22: =IF(INTRO!$E$39="Non-endemic",IF(INTRO!$E$37="Non-endemic","Not required",COUNTRY_INFO!P22),"Treat with IVM") -> Treat with IVM | I22: 0 | J22: 0 | L22: 0 | M22: 0

Sheet ALB_MBD
A1: Albendazole (ALB) and Mebendazole (MBD)
A2: Administrative structure, eligible population by age group, treatment plan and information about tablets
A4: TOTAL | D4: =SUM(D$9:D$1000) -> 749673 | E4: =SUM(E$9:E$1000) -> 2268208 | F4: =SUM(F$9:F$1000) -> 3017881 | I4: =SUM(I$9:I$1000) -> 2858692 | K4: =SUM(K$9:K$1000) -> 743177 | L4: =SUM(L$9:L$1000) -> 1385052 | M4: =SUM(M$9:M$1000) -> 0 | N4: =SUM(N$9:N$1000) -> 2128229 | O4: =SUM(O$9:O$1000) -> 0 | P4: =SUM(P$9:P$1000) -> 0 | Q4: 0 | R4: 0 | S4: 0 | T4: 2858692 | U4: 14296 | V4: 0 | W4: 1385052 | X4: 6930 | Y4: 0 | Z4: 0 | AA4: 0
A6: Country administrative structure | D6: Population requiring treatment with ALB/MBD | G6: Treatment plan | I6: People covered by PELF with ALB | J6: Select medicine for treatment of STH | K6: Target population | S6: Albendazole (ALB) | Y6: Mebendazole (MBD)
A7: Country | B7: Province/State | C7: District | D7: PreSAC | E7: SAC | F7: Total | G7: LF | H7: STH | K7: STH (ALB) | O7: STH (MBD) | S7: Remaining in stock (LF) | T7: Tablets to be procured (LF) | U7: Bottle (400 mg) 200 tablets (LF) | V7: Remaining in stock (STH) | W7: Tablets to be procured for SAC (STH) | X7: Bottle (400 mg) 200 tablets (STH) | Y7: Remaining in stock | Z7: Tablets to be procured for SAC | AA7: Bottles (500 mg) 150 tablets
K8: PreSAC | L8: SAC | M8: Other | N8: Total | O8: PreSAC | P8: SAC | Q8: Other | R8: Total
A9: =IF(AND(INTRO!$E$37="Non-endemic",INTRO!$E$41="Non-endemic")," ",IF(COUNTRY_INFO!A9=0," ",COUNTRY_INFO!A9)) -> Sierra Leone | B9: =IF(AND(INTRO!$E$37="Non-endemic",INTRO!$E$41="Non-endemic")," ",IF(COUNTRY_INFO!B9=0," ",COUNTRY_INFO!B9)) -> SOUHTERN | C9: =IF(AND(INTRO!$E$37="Non-endemic",INTRO!$E$41="Non-endemic")," ",IF(COUNTRY_INFO!C9=0," ",COUNTRY_INFO!C9)) -> BO | D9: =IF(AND(INTRO!$E$37="Non-endemic",INTRO!$E$41="Non-endemic"),0,IF(AND(OR(COUNTRY_INFO!$H9=0,COUNTRY_INFO!$H9=4,COUNTRY_INFO!$H9=99),OR(COUNTRY_INFO!$J9=0,COUNTRY_INFO!$J9=4)),0,COUNTRY_INFO!$E9)) -> 53340 | E9: =IF(AND(INTRO!$E$37="Non-endemic",INTRO!$E$41="Non-endemic"),0,IF(AND(OR(COUNTRY_INFO!$H9=0,COUNTRY_INFO!$H9=4,COUNTRY_INFO!$H9=99),OR(COUNTRY_INFO!$J9=0,COUNTRY_INFO!$J9=4)),0,COUNTRY_INFO!$F9)) -> 161386 | F9: =SUM(D9:E9) -> 214726 | G9: =IF(AND(INTRO!$E$37="Non-endemic",INTRO!$E$41="Non-endemic"),0,COUNTRY_INFO!P9) -> 0 | H9: =IF(AND(INTRO!$E$37="Non-endemic",INTRO!$E$41="Non-endemic"),0,COUNTRY_INFO!R9) -> 1 | I9: =IF(INTRO!$E$39="Non-endemic",IF($G9=1,DEC!I9,0),IF($G9=1,IVM!G9,0)) -> 0 | J9: ALB | K9: =IF($J9="ALB", IF(INTRO!$E$39="Non-endemic", IF($H9<>0, IF($I9=0, $D9*$H9, $D9*($H9-$G9)), 0), $D9*$H9), 0) -> 53340 | L9: =IF($J9="ALB", IF($H9<>0, IF($I9=0, $E9*$H9, $E9*($H9-$G9)),0), 0) -> 161386 | N9: =SUM(K9:M9) -> 214726 | O9: =IF($J9="MBD", IF(INTRO!$E$39="Non-endemic", IF($H9<>0, IF($I9=0, $D9*$H9, $D9*($H9-$G9)), 0), $D9*$H9), 0) -> 0 | P9: =IF($J9="MBD", IF($H9<>0,IF($I9=0, $E9*$H9, $E9*($H9-$G9)),0), 0 ) -> 0 | R9: =SUM(O9:Q9) -> 0 | S9: 0 | T9: =IF($I9>$S9, $I9-$S9,0) -> 0 | U9: =ROUNDUP($I9/200,0) -> 0 | V9: 0 | W9: =IF($L9>$V9,$L9-$V9,0) -> 161386 | X9: =ROUNDUP($L9/200,0) -> 807 | Z9: =IF($P9>$Y9,$P9-$Y9,0) -> 0 | AA9: =ROUNDUP($P9/150,0) -> 0
A10: =IF(AND(INTRO!$E$37="Non-endemic",INTRO!$E$41="Non-endemic")," ",IF(COUNTRY_INFO!A10=0," ",COUNTRY_INFO!A10)) -> Sierra Leone | B10: =IF(AND(INTRO!$E$37="Non-endemic",INTRO!$E$41="Non-endemic")," ",IF(COUNTRY_INFO!B10=0," ",COUNTRY_INFO!B10)) -> SOUHTERN | C10: =IF(AND(INTRO!$E$37="Non-endemic",INTRO!$E$41="Non-endemic")," ",IF(COUNTRY_INFO!C10=0," ",COUNTRY_INFO!C10)) -> MOYAMBA | D10: =IF(AND(INTRO!$E$37="Non-endemic",INTRO!$E$41="Non-endemic"),0,IF(AND(OR(COUNTRY_INFO!$H10=0,COUNTRY_INFO!$H10=4,COUNTRY_INFO!$H10=99),OR(COUNTRY_INFO!$J10=0,COUNTRY_INFO!$J10=4)),0,COUNTRY_INFO!$E10)) -> 32158 | E10: =IF(AND(INTRO!$E$37="Non-endemic",INTRO!$E$41="Non-endemic"),0,IF(AND(OR(COUNTRY_INFO!$H10=0,COUNTRY_INFO!$H10=4,COUNTRY_INFO!$H10=99),OR(COUNTRY_INFO!$J10=0,COUNTRY_INFO!$J10=4)),0,COUNTRY_INFO!$F10)) -> 97298 | F10: 129456 | G10: =IF(AND(INTRO!$E$37="Non-endemic",INTRO!$E$41="Non-endemic"),0,COUNTRY_INFO!P10) -> 0 | H10: =IF(AND(INTRO!$E$37="Non-endemic",INTRO!$E$41="Non-endemic"),0,COUNTRY_INFO!R10) -> 1 | I10: =IF(INTRO!$E$39="Non-endemic",IF($G10=1,DEC!I10,0),IF($G10=1,IVM!G10,0)) -> 0 | J10: ALB | K10: =IF($J10="ALB", IF(INTRO!$E$39="Non-endemic", IF($H10<>0, IF($I10=0, $D10*$H10, $D10*($H10-$G10)), 0), $D10*$H10), 0) -> 32158 | L10: 97298 | N10: 129456 | O10: =IF($J10="MBD", IF(INTRO!$E$39="Non-endemic", IF($H10<>0, IF($I10=0, $D10*$H10, $D10*($H10-$G10)), 0), $D10*$H10), 0) -> 0 | P10: 0 | R10: 0 | S10: 0 | T10: 0 | U10: 0 | V10: 0 | W10: 97298 | X10: 487 | Z10: 0 | AA10: 0
A11: =IF(AND(INTRO!$E$37="Non-endemic",INTRO!$E$41="Non-endemic")," ",IF(COUNTRY_INFO!A11=0," ",COUNTRY_INFO!A11)) -> Sierra Leone | B11: =IF(AND(INTRO!$E$37="Non-endemic",INTRO!$E$41="Non-endemic")," ",IF(COUNTRY_INFO!B11=0," ",COUNTRY_INFO!B11)) -> SOUHTERN | C11: =IF(AND(INTRO!$E$37="Non-endemic",INTRO!$E$41="Non-endemic")," ",IF(COUNTRY_INFO!C11=0," ",COUNTRY_INFO!C11)) -> PUJEHUN | D11: =IF(AND(INTRO!$E$37="Non-endemic",INTRO!$E$41="Non-endemic"),0,IF(AND(OR(COUNTRY_INFO!$H11=0,COUNTRY_INFO!$H11=4,COUNTRY_INFO!$H11=99),OR(COUNTRY_INFO!$J11=0,COUNTRY_INFO!$J11=4)),0,COUNTRY_INFO!$E11)) -> 31800 | E11: =IF(AND(INTRO!$E$37="Non-endemic",INTRO!$E$41="Non-endemic"),0,IF(AND(OR(COUNTRY_INFO!$H11=0,COUNTRY_INFO!$H11=4,COUNTRY_INFO!$H11=99),OR(COUNTRY_INFO!$J11=0,COUNTRY_INFO!$J11=4)),0,COUNTRY_INFO!$F11)) -> 96214 | F11: 128014 | G11: =IF(AND(INTRO!$E$37="Non-endemic",INTRO!$E$41="Non-endemic"),0,COUNTRY_INFO!P11) -> 0 | H11: =IF(AND(INTRO!$E$37="Non-endemic",INTRO!$E$41="Non-endemic"),0,COUNTRY_INFO!R11) -> 1 | I11: =IF(INTRO!$E$39="Non-endemic",IF($G11=1,DEC!I11,0),IF($G11=1,IVM!G11,0)) -> 0 | J11: ALB | K11: =IF($J11="ALB", IF(INTRO!$E$39="Non-endemic", IF($H11<>0, IF($I11=0, $D11*$H11, $D11*($H11-$G11)), 0), $D11*$H11), 0) -> 31800 | L11: 96214 | N11: 128014 | O11: =IF($J11="MBD", IF(INTRO!$E$39="Non-endemic", IF($H11<>0, IF($I11=0, $D11*$H11, $D11*($H11-$G11)), 0), $D11*$H11), 0) -> 0 | P11: 0 | R11: 0 | S11: 0 | T11: 0 | U11: 0 | V11: 0 | W11: 96214 | X11: 482 | Z11: 0 | AA11: 0
A12: =IF(AND(INTRO!$E$37="Non-endemic",INTRO!$E$41="Non-endemic")," ",IF(COUNTRY_INFO!A12=0," ",COUNTRY_INFO!A12)) -> Sierra Leone | B12: =IF(AND(INTRO!$E$37="Non-endemic",INTRO!$E$41="Non-endemic")," ",IF(COUNTRY_INFO!B12=0," ",COUNTRY_INFO!B12)) -> SOUHTERN | C12: =IF(AND(INTRO!$E$37="Non-endemic",INTRO!$E$41="Non-endemic")," ",IF(COUNTRY_INFO!C12=0," ",COUNTRY_INFO!C12)) -> BONTHE | D12: =IF(AND(INTRO!$E$37="Non-endemic",INTRO!$E$41="Non-endemic"),0,IF(AND(OR(COUNTRY_INFO!$H12=0,COUNTRY_INFO!$H12=4,COUNTRY_INFO!$H12=99),OR(COUNTRY_INFO!$J12=0,COUNTRY_INFO!$J12=4)),0,COUNTRY_INFO!$E12)) -> 17837 | E12: =IF(AND(INTRO!$E$37="Non-endemic",INTRO!$E$41="Non-endemic"),0,IF(AND(OR(COUNTRY_INFO!$H12=0,COUNTRY_INFO!$H12=4,COUNTRY_INFO!$H12=99),OR(COUNTRY_INFO!$J12=0,COUNTRY_INFO!$J12=4)),0,COUNTRY_INFO!$F12)) -> 53968 | F12: 71805 | G12: =IF(AND(INTRO!$E$37="Non-endemic",INTRO!$E$41="Non-endemic"),0,COUNTRY_INFO!P12) -> 0 | H12: =IF(AND(INTRO!$E$37="Non-endemic",INTRO!$E$41="Non-endemic"),0,COUNTRY_INFO!R12) -> 1 | I12: =IF(INTRO!$E$39="Non-endemic",IF($G12=1,DEC!I12,0),IF($G12=1,IVM!G12,0)) -> 0 | J12: ALB | K12: =IF($J12="ALB", IF(INTRO!$E$39="Non-endemic", IF($H12<>0, IF($I12=0, $D12*$H12, $D12*($H12-$G12)), 0), $D12*$H12), 0) -> 17837 | L12: 53968 | N12: 71805 | O12: =IF($J12="MBD", IF(INTRO!$E$39="Non-endemic", IF($H12<>0, IF($I12=0, $D12*$H12, $D12*($H12-$G12)), 0), $D12*$H12), 0) -> 0 | P12: 0 | R12: 0 | S12: 0 | T12: 0 | U12: 0 | V12: 0 | W12: 53968 | X12: 270 | Z12: 0 | AA12: 0
A13: =IF(AND(INTRO!$E$37="Non-endemic",INTRO!$E$41="Non-endemic")," ",IF(COUNTRY_INFO!A13=0," ",COUNTRY_INFO!A13)) -> Sierra Leone | B13: =IF(AND(INTRO!$E$37="Non-endemic",INTRO!$E$41="Non-endemic")," ",IF(COUNTRY_INFO!B13=0," ",COUNTRY_INFO!B13)) -> EASTERN | C13: =IF(AND(INTRO!$E$37="Non-endemic",INTRO!$E$41="Non-endemic")," ",IF(COUNTRY_INFO!C13=0," ",COUNTRY_INFO!C13)) -> KENEMA | D13: =IF(AND(INTRO!$E$37="Non-endemic",INTRO!$E$41="Non-endemic"),0,IF(AND(OR(COUNTRY_INFO!$H13=0,COUNTRY_INFO!$H13=4,COUNTRY_INFO!$H13=99),OR(COUNTRY_INFO!$J13=0,COUNTRY_INFO!$J13=4)),0,COUNTRY_INFO!$E13)) -> 70201 | E13: =IF(AND(INTRO!$E$37="Non-endemic",INTRO!$E$41="Non-endemic"),0,IF(AND(OR(COUNTRY_INFO!$H13=0,COUNTRY_INFO!$H13=4,COUNTRY_INFO!$H13=99),OR(COUNTRY_INFO!$J13=0,COUNTRY_INFO!$J13=4)),0,COUNTRY_INFO!$F13)) -> 212401 | F13: 282602 | G13: =IF(AND(INTRO!$E$37="Non-endemic",INTRO!$E$41="Non-endemic"),0,COUNTRY_INFO!P13) -> 1 | H13: =IF(AND(INTRO!$E$37="Non-endemic",INTRO!$E$41="Non-endemic"),0,COUNTRY_INFO!R13) -> 1 | I13: =IF(INTRO!$E$39="Non-endemic",IF($G13=1,DEC!I13,0),IF($G13=1,IVM!G13,0)) -> 703171 | J13: ALB | K13: =IF($J13="ALB", IF(INTRO!$E$39="Non-endemic", IF($H13<>0, IF($I13=0, $D13*$H13, $D13*($H13-$G13)), 0), $D13*$H13), 0) -> 70201 | L13: 0 | N13: 70201 | O13: =IF($J13="MBD", IF(INTRO!$E$39="Non-endemic", IF($H13<>0, IF($I13=0, $D13*$H13, $D13*($H13-$G13)), 0), $D13*$H13), 0) -> 0 | P13: 0 | R13: 0 | S13: 0 | T13: 703171 | U13: 3516 | V13: 0 | W13: 0 | X13: 0 | Z13: 0 | AA13: 0
A14: =IF(AND(INTRO!$E$37="Non-endemic",INTRO!$E$41="Non-endemic")," ",IF(COUNTRY_INFO!A14=0," ",COUNTRY_INFO!A14)) -> Sierra Leone | B14: =IF(AND(INTRO!$E$37="Non-endemic",INTRO!$E$41="Non-endemic")," ",IF(COUNTRY_INFO!B14=0," ",COUNTRY_INFO!B14)) -> EASTERN | C14: =IF(AND(INTRO!$E$37="Non-endemic",INTRO!$E$41="Non-endemic")," ",IF(COUNTRY_INFO!C14=0," ",COUNTRY_INFO!C14)) -> KONO | D14: =IF(AND(INTRO!$E$37="Non-endemic",INTRO!$E$41="Non-endemic"),0,IF(AND(OR(COUNTRY_INFO!$H14=0,COUNTRY_INFO!$H14=4,COUNTRY_INFO!$H14=99),OR(COUNTRY_INFO!$J14=0,COUNTRY_INFO!$J14=4)),0,COUNTRY_INFO!$E14)) -> 52430 | E14: =IF(AND(INTRO!$E$37="Non-endemic",INTRO!$E$41="Non-endemic"),0,IF(AND(OR(COUNTRY_INFO!$H14=0,COUNTRY_INFO!$H14=4,COUNTRY_INFO!$H14=99),OR(COUNTRY_INFO!$J14=0,COUNTRY_INFO!$J14=4)),0,COUNTRY_INFO!$F14)) -> 158634 | F14: 211064 | G14: =IF(AND(INTRO!$E$37="Non-endemic",INTRO!$E$41="Non-endemic"),0,COUNTRY_INFO!P14) -> 0 | H14: =IF(AND(INTRO!$E$37="Non-endemic",INTRO!$E$41="Non-endemic"),0,COUNTRY_INFO!R14) -> 0 | I14: =IF(INTRO!$E$39="Non-endemic",IF($G14=1,DEC!I14,0),IF($G14=1,IVM!G14,0)) -> 0 | J14: ALB | K14: =IF($J14="ALB", IF(INTRO!$E$39="Non-endemic", IF($H14<>0, IF($I14=0, $D14*$H14, $D14*($H14-$G14)), 0), $D14*$H14), 0) -> 0 | L14: 0 | N14: 0 | O14: =IF($J14="MBD", IF(INTRO!$E$39="Non-endemic", IF($H14<>0, IF($I14=0, $D14*$H14, $D14*($H14-$G14)), 0), $D14*$H14), 0) -> 0 | P14: 0 | R14: 0 | S14: 0 | T14: 0 | U14: 0 | V14: 0 | W14: 0 | X14: 0 | Z14: 0 | AA14: 0
A15: =IF(AND(INTRO!$E$37="Non-endemic",INTRO!$E$41="Non-endemic")," ",IF(COUNTRY_INFO!A15=0," ",COUNTRY_INFO!A15)) -> Sierra Leone | B15: =IF(AND(INTRO!$E$37="Non-endemic",INTRO!$E$41="Non-endemic")," ",IF(COUNTRY_INFO!B15=0," ",COUNTRY_INFO!B15)) -> EASTERN | C15: =IF(AND(INTRO!$E$37="Non-endemic",INTRO!$E$41="Non-endemic")," ",IF(COUNTRY_INFO!C15=0," ",COUNTRY_INFO!C15)) -> KAILAHUN | D15: =IF(AND(INTRO!$E$37="Non-endemic",INTRO!$E$41="Non-endemic"),0,IF(AND(OR(COUNTRY_INFO!$H15=0,COUNTRY_INFO!$H15=4,COUNTRY_INFO!$H15=99),OR(COUNTRY_INFO!$J15=0,COUNTRY_INFO!$J15=4)),0,COUNTRY_INFO!$E15)) -> 64716 | E15: =IF(AND(INTRO!$E$37="Non-endemic",INTRO!$E$41="Non-endemic"),0,IF(AND(OR(COUNTRY_INFO!$H15=0,COUNTRY_INFO!$H15=4,COUNTRY_INFO!$H15=99),OR(COUNTRY_INFO!$J15=0,COUNTRY_INFO!$J15=4)),0,COUNTRY_INFO!$F15)) -> 195804 | F15: 260520 | G15: =IF(AND(INTRO!$E$37="Non-endemic",INTRO!$E$41="Non-endemic"),0,COUNTRY_INFO!P15) -> 1 | H15: =IF(AND(INTRO!$E$37="Non-endemic",INTRO!$E$41="Non-endemic"),0,COUNTRY_INFO!R15) -> 1 | I15: =IF(INTRO!$E$39="Non-endemic",IF($G15=1,DEC!I15,0),IF($G15=1,IVM!G15,0)) -> 648226 | J15: ALB | K15: =IF($J15="ALB", IF(INTRO!$E$39="Non-endemic", IF($H15<>0, IF($I15=0, $D15*$H15, $D15*($H15-$G15)), 0), $D15*$H15), 0) -> 64716 | L15: 0 | N15: 64716 | O15: =IF($J15="MBD", IF(INTRO!$E$39="Non-endemic", IF($H15<>0, IF($I15=0, $D15*$H15, $D15*($H15-$G15)), 0), $D15*$H15), 0) -> 0 | P15: 0 | R15: 0 | S15: 0 | T15: 648226 | U15: 3242 | V15: 0 | W15: 0 | X15: 0 | Z15: 0 | AA15: 0
A16: =IF(AND(INTRO!$E$37="Non-endemic",INTRO!$E$41="Non-endemic")," ",IF(COUNTRY_INFO!A16=0," ",COUNTRY_INFO!A16)) -> Sierra Leone | B16: =IF(AND(INTRO!$E$37="Non-endemic",INTRO!$E$41="Non-endemic")," ",IF(COUNTRY_INFO!B16=0," ",COUNTRY_INFO!B16)) -> NORTHERN | C16: =IF(AND(INTRO!$E$37="Non-endemic",INTRO!$E$41="Non-endemic")," ",IF(COUNTRY_INFO!C16=0," ",COUNTRY_INFO!C16)) -> BOMBALI | D16: =IF(AND(INTRO!$E$37="Non-endemic",INTRO!$E$41="Non-endemic"),0,IF(AND(OR(COUNTRY_INFO!$H16=0,COUNTRY_INFO!$H16=4,COUNTRY_INFO!$H16=99),OR(COUNTRY_INFO!$J16=0,COUNTRY_INFO!$J16=4)),0,COUNTRY_INFO!$E16)) -> 59093 | E16: =IF(AND(INTRO!$E$37="Non-endemic",INTRO!$E$41="Non-endemic"),0,IF(AND(OR(COUNTRY_INFO!$H16=0,COUNTRY_INFO!$H16=4,COUNTRY_INFO!$H16=99),OR(COUNTRY_INFO!$J16=0,COUNTRY_INFO!$J16=4)),0,COUNTRY_INFO!$F16)) -> 178791 | F16: 237884 | G16: =IF(AND(INTRO!$E$37="Non-endemic",INTRO!$E$41="Non-endemic"),0,COUNTRY_INFO!P16) -> 1 | H16: =IF(AND(INTRO!$E$37="Non-endemic",INTRO!$E$41="Non-endemic"),0,COUNTRY_INFO!R16) -> 1 | I16: =IF(INTRO!$E$39="Non-endemic",IF($G16=1,DEC!I16,0),IF($G16=1,IVM!G16,0)) -> 591903 | J16: ALB | K16: =IF($J16="ALB", IF(INTRO!$E$39="Non-endemic", IF($H16<>0, IF($I16=0, $D16*$H16, $D16*($H16-$G16)), 0), $D16*$H16), 0) -> 59093 | L16: 0 | N16: 59093 | O16: =IF($J16="MBD", IF(INTRO!$E$39="Non-endemic", IF($H16<>0, IF($I16=0, $D16*$H16, $D16*($H16-$G16)), 0), $D16*$H16), 0) -> 0 | P16: 0 | R16: 0 | S16: 0 | T16: 591903 | U16: 2960 | V16: 0 | W16: 0 | X16: 0 | Z16: 0 | AA16: 0
A17: =IF(AND(INTRO!$E$37="Non-endemic",INTRO!$E$41="Non-endemic")," ",IF(COUNTRY_INFO!A17=0," ",COUNTRY_INFO!A17)) -> Sierra Leone | B17: =IF(AND(INTRO!$E$37="Non-endemic",INTRO!$E$41="Non-endemic")," ",IF(COUNTRY_INFO!B17=0," ",COUNTRY_INFO!B17)) -> NORTHERN | C17: =IF(AND(INTRO!$E$37="Non-endemic",INTRO!$E$41="Non-endemic")," ",IF(COUNTRY_INFO!C17=0," ",COUNTRY_INFO!C17)) -> TONKOLILI | D17: =IF(AND(INTRO!$E$37="Non-endemic",INTRO!$E$41="Non-endemic"),0,IF(AND(OR(COUNTRY_INFO!$H17=0,COUNTRY_INFO!$H17=4,COUNTRY_INFO!$H17=99),OR(COUNTRY_INFO!$J17=0,COUNTRY_INFO!$J17=4)),0,COUNTRY_INFO!$E17)) -> 49393 | E17: =IF(AND(INTRO!$E$37="Non-endemic",INTRO!$E$41="Non-endemic"),0,IF(AND(OR(COUNTRY_INFO!$H17=0,COUNTRY_INFO!$H17=4,COUNTRY_INFO!$H17=99),OR(COUNTRY_INFO!$J17=0,COUNTRY_INFO!$J17=4)),0,COUNTRY_INFO!$F17)) -> 149442 | F17: 198835 | G17: =IF(AND(INTRO!$E$37="Non-endemic",INTRO!$E$41="Non-endemic"),0,COUNTRY_INFO!P17) -> 0 | H17: =IF(AND(INTRO!$E$37="Non-endemic",INTRO!$E$41="Non-endemic"),0,COUNTRY_INFO!R17) -> 1 | I17: =IF(INTRO!$E$39="Non-endemic",IF($G17=1,DEC!I17,0),IF($G17=1,IVM!G17,0)) -> 0 | J17: ALB | K17: =IF($J17="ALB", IF(INTRO!$E$39="Non-endemic", IF($H17<>0, IF($I17=0, $D17*$H17, $D17*($H17-$G17)), 0), $D17*$H17), 0) -> 49393 | L17: 149442 | N17: 198835 | O17: =IF($J17="MBD", IF(INTRO!$E$39="Non-endemic", IF($H17<>0, IF($I17=0, $D17*$H17, $D17*($H17-$G17)), 0), $D17*$H17), 0) -> 0 | P17: 0 | R17: 0 | S17: 0 | T17: 0 | U17: 0 | V17: 0 | W17: 149442 | X17: 748 | Z17: 0 | AA17: 0
A18: =IF(AND(INTRO!$E$37="Non-endemic",INTRO!$E$41="Non-endemic")," ",IF(COUNTRY_INFO!A18=0," ",COUNTRY_INFO!A18)) -> Sierra Leone | B18: =IF(AND(INTRO!$E$37="Non-endemic",INTRO!$E$41="Non-endemic")," ",IF(COUNTRY_INFO!B18=0," ",COUNTRY_INFO!B18)) -> NORTHERN | C18: =IF(AND(INTRO!$E$37="Non-endemic",INTRO!$E$41="Non-endemic")," ",IF(COUNTRY_INFO!C18=0," ",COUNTRY_INFO!C18)) -> PORT LOKO | D18: =IF(AND(INTRO!$E$37="Non-endemic",INTRO!$E$41="Non-endemic"),0,IF(AND(OR(COUNTRY_INFO!$H18=0,COUNTRY_INFO!$H18=4,COUNTRY_INFO!$H18=99),OR(COUNTRY_INFO!$J18=0,COUNTRY_INFO!$J18=4)),0,COUNTRY_INFO!$E18)) -> 57132 | E18: =IF(AND(INTRO!$E$37="Non-endemic",INTRO!$E$41="Non-endemic"),0,IF(AND(OR(COUNTRY_INFO!$H18=0,COUNTRY_INFO!$H18=4,COUNTRY_INFO!$H18=99),OR(COUNTRY_INFO!$J18=0,COUNTRY_INFO!$J18=4)),0,COUNTRY_INFO!$F18)) -> 172857 | F18: 229989 | G18: =IF(AND(INTRO!$E$37="Non-endemic",INTRO!$E$41="Non-endemic"),0,COUNTRY_INFO!P18) -> 0 | H18: =IF(AND(INTRO!$E$37="Non-endemic",INTRO!$E$41="Non-endemic"),0,COUNTRY_INFO!R18) -> 1 | I18: =IF(INTRO!$E$39="Non-endemic",IF($G18=1,DEC!I18,0),IF($G18=1,IVM!G18,0)) -> 0 | J18: ALB | K18: =IF($J18="ALB", IF(INTRO!$E$39="Non-endemic", IF($H18<>0, IF($I18=0, $D18*$H18, $D18*($H18-$G18)), 0), $D18*$H18), 0) -> 57132 | L18: 172857 | N18: 229989 | O18: =IF($J18="MBD", IF(INTRO!$E$39="Non-endemic", IF($H18<>0, IF($I18=0, $D18*$H18, $D18*($H18-$G18)), 0), $D18*$H18), 0) -> 0 | P18: 0 | R18: 0 | S18: 0 | T18: 0 | U18: 0 | V18: 0 | W18: 172857 | X18: 865 | Z18: 0 | AA18: 0
A19: =IF(AND(INTRO!$E$37="Non-endemic",INTRO!$E$41="Non-endemic")," ",IF(COUNTRY_INFO!A19=0," ",COUNTRY_INFO!A19)) -> Sierra Leone | B19: =IF(AND(INTRO!$E$37="Non-endemic",INTRO!$E$41="Non-endemic")," ",IF(COUNTRY_INFO!B19=0," ",COUNTRY_INFO!B19)) -> NORTHERN | C19: =IF(AND(INTRO!$E$37="Non-endemic",INTRO!$E$41="Non-endemic")," ",IF(COUNTRY_INFO!C19=0," ",COUNTRY_INFO!C19)) -> KOINADUGU | D19: =IF(AND(INTRO!$E$37="Non-endemic",INTRO!$E$41="Non-endemic"),0,IF(AND(OR(COUNTRY_INFO!$H19=0,COUNTRY_INFO!$H19=4,COUNTRY_INFO!$H19=99),OR(COUNTRY_INFO!$J19=0,COUNTRY_INFO!$J19=4)),0,COUNTRY_INFO!$E19)) -> 45934 | E19: =IF(AND(INTRO!$E$37="Non-endemic",INTRO!$E$41="Non-endemic"),0,IF(AND(OR(COUNTRY_INFO!$H19=0,COUNTRY_INFO!$H19=4,COUNTRY_INFO!$H19=99),OR(COUNTRY_INFO!$J19=0,COUNTRY_INFO!$J19=4)),0,COUNTRY_INFO!$F19)) -> 138978 | F19: 184912 | G19: =IF(AND(INTRO!$E$37="Non-endemic",INTRO!$E$41="Non-endemic"),0,COUNTRY_INFO!P19) -> 1 | H19: =IF(AND(INTRO!$E$37="Non-endemic",INTRO!$E$41="Non-endemic"),0,COUNTRY_INFO!R19) -> 2 | I19: =IF(INTRO!$E$39="Non-endemic",IF($G19=1,DEC!I19,0),IF($G19=1,IVM!G19,0)) -> 460099 | J19: ALB | K19: =IF($J19="ALB", IF(INTRO!$E$39="Non-endemic", IF($H19<>0, IF($I19=0, $D19*$H19, $D19*($H19-$G19)), 0), $D19*$H19), 0) -> 91868 | L19: 138978 | N19: 230846 | O19: =IF($J19="MBD", IF(INTRO!$E$39="Non-endemic", IF($H19<>0, IF($I19=0, $D19*$H19, $D19*($H19-$G19)), 0), $D19*$H19), 0) -> 0 | P19: 0 | R19: 0 | S19: 0 | T19: 460099 | U19: 2301 | V19: 0 | W19: 138978 | X19: 695 | Z19: 0 | AA19: 0
A20: =IF(AND(INTRO!$E$37="Non-endemic",INTRO!$E$41="Non-endemic")," ",IF(COUNTRY_INFO!A20=0," ",COUNTRY_INFO!A20)) -> Sierra Leone | B20: =IF(AND(INTRO!$E$37="Non-endemic",INTRO!$E$41="Non-endemic")," ",IF(COUNTRY_INFO!B20=0," ",COUNTRY_INFO!B20)) -> NORTHERN | C20: =IF(AND(INTRO!$E$37="Non-endemic",INTRO!$E$41="Non-endemic")," ",IF(COUNTRY_INFO!C20=0," ",COUNTRY_INFO!C20)) -> KAMBIA | D20: =IF(AND(INTRO!$E$37="Non-endemic",INTRO!$E$41="Non-endemic"),0,IF(AND(OR(COUNTRY_INFO!$H20=0,COUNTRY_INFO!$H20=4,COUNTRY_INFO!$H20=99),OR(COUNTRY_INFO!$J20=0,COUNTRY_INFO!$J20=4)),0,COUNTRY_INFO!$E20)) -> 33862 | E20: =IF(AND(INTRO!$E$37="Non-endemic",INTRO!$E$41="Non-endemic"),0,IF(AND(OR(COUNTRY_INFO!$H20=0,COUNTRY_INFO!$H20=4,COUNTRY_INFO!$H20=99),OR(COUNTRY_INFO!$J20=0,COUNTRY_INFO!$J20=4)),0,COUNTRY_INFO!$F20)) -> 102451 | F20: 136313 | G20: =IF(AND(INTRO!$E$37="Non-endemic",INTRO!$E$41="Non-endemic"),0,COUNTRY_INFO!P20) -> 0 | H20: =IF(AND(INTRO!$E$37="Non-endemic",INTRO!$E$41="Non-endemic"),0,COUNTRY_INFO!R20) -> 1 | I20: =IF(INTRO!$E$39="Non-endemic",IF($G20=1,DEC!I20,0),IF($G20=1,IVM!G20,0)) -> 0 | J20: ALB | K20: =IF($J20="ALB", IF(INTRO!$E$39="Non-endemic", IF($H20<>0, IF($I20=0, $D20*$H20, $D20*($H20-$G20)), 0), $D20*$H20), 0) -> 33862 | L20: 102451 | N20: 136313 | O20: =IF($J20="MBD", IF(INTRO!$E$39="Non-endemic", IF($H20<>0, IF($I20=0, $D20*$H20, $D20*($H20-$G20)), 0), $D20*$H20), 0) -> 0 | P20: 0 | R20: 0 | S20: 0 | T20: 0 | U20: 0 | V20: 0 | W20: 102451 | X20: 513 | Z20: 0 | AA20: 0
A21: =IF(AND(INTRO!$E$37="Non-endemic",INTRO!$E$41="Non-endemic")," ",IF(COUNTRY_INFO!A21=0," ",COUNTRY_INFO!A21)) -> Sierra Leone | B21: =IF(AND(INTRO!$E$37="Non-endemic",INTRO!$E$41="Non-endemic")," ",IF(COUNTRY_INFO!B21=0," ",COUNTRY_INFO!B21)) -> WESTERN | C21: =IF(AND(INTRO!$E$37="Non-endemic",INTRO!$E$41="Non-endemic")," ",IF(COUNTRY_INFO!C21=0," ",COUNTRY_INFO!C21)) -> WESTERN RURAL | D21: =IF(AND(INTRO!$E$37="Non-endemic",INTRO!$E$41="Non-endemic"),0,IF(AND(OR(COUNTRY_INFO!$H21=0,COUNTRY_INFO!$H21=4,COUNTRY_INFO!$H21=99),OR(COUNTRY_INFO!$J21=0,COUNTRY_INFO!$J21=4)),0,COUNTRY_INFO!$E21)) -> 45454 | E21: =IF(AND(INTRO!$E$37="Non-endemic",INTRO!$E$41="Non-endemic"),0,IF(AND(OR(COUNTRY_INFO!$H21=0,COUNTRY_INFO!$H21=4,COUNTRY_INFO!$H21=99),OR(COUNTRY_INFO!$J21=0,COUNTRY_INFO!$J21=4)),0,COUNTRY_INFO!$F21)) -> 137526 | F21: 182980 | G21: =IF(AND(INTRO!$E$37="Non-endemic",INTRO!$E$41="Non-endemic"),0,COUNTRY_INFO!P21) -> 1 | H21: =IF(AND(INTRO!$E$37="Non-endemic",INTRO!$E$41="Non-endemic"),0,COUNTRY_INFO!R21) -> 1 | I21: =IF(INTRO!$E$39="Non-endemic",IF($G21=1,DEC!I21,0),IF($G21=1,IVM!G21,0)) -> 455293 | J21: ALB | K21: =IF($J21="ALB", IF(INTRO!$E$39="Non-endemic", IF($H21<>0, IF($I21=0, $D21*$H21, $D21*($H21-$G21)), 0), $D21*$H21), 0) -> 45454 | L21: 0 | N21: 45454 | O21: =IF($J21="MBD", IF(INTRO!$E$39="Non-endemic", IF($H21<>0, IF($I21=0, $D21*$H21, $D21*($H21-$G21)), 0), $D21*$H21), 0) -> 0 | P21: 0 | R21: 0 | S21: 0 | T21: 455293 | U21: 2277 | V21: 0 | W21: 0 | X21: 0 | Z21: 0 | AA21: 0
A22: =IF(AND(INTRO!$E$37="Non-endemic",INTRO!$E$41="Non-endemic")," ",IF(COUNTRY_INFO!A22=0," ",COUNTRY_INFO!A22)) -> Sierra Leone | B22: =IF(AND(INTRO!$E$37="Non-endemic",INTRO!$E$41="Non-endemic")," ",IF(COUNTRY_INFO!B22=0," ",COUNTRY_INFO!B22)) -> WESTERN | C22: =IF(AND(INTRO!$E$37="Non-endemic",INTRO!$E$41="Non-endemic")," ",IF(COUNTRY_INFO!C22=0," ",COUNTRY_INFO!C22)) -> WESTERN URBAN | D22: =IF(AND(INTRO!$E$37="Non-endemic",INTRO!$E$41="Non-endemic"),0,IF(AND(OR(COUNTRY_INFO!$H22=0,COUNTRY_INFO!$H22=4,COUNTRY_INFO!$H22=99),OR(COUNTRY_INFO!$J22=0,COUNTRY_INFO!$J22=4)),0,COUNTRY_INFO!$E22)) -> 136323 | E22: =IF(AND(INTRO!$E$37="Non-endemic",INTRO!$E$41="Non-endemic"),0,IF(AND(OR(COUNTRY_INFO!$H22=0,COUNTRY_INFO!$H22=4,COUNTRY_INFO!$H22=99),OR(COUNTRY_INFO!$J22=0,COUNTRY_INFO!$J22=4)),0,COUNTRY_INFO!$F22)) -> 412458 | F22: 548781 | G22: =IF(AND(INTRO!$E$37="Non-endemic",INTRO!$E$41="Non-endemic"),0,COUNTRY_INFO!P22) -> 0 | H22: =IF(AND(INTRO!$E$37="Non-endemic",INTRO!$E$41="Non-endemic"),0,COUNTRY_INFO!R22) -> 1 | I22: =IF(INTRO!$E$39="Non-endemic",IF($G22=1,DEC!I22,0),IF($G22=1,IVM!G22,0)) -> 0 | J22: ALB | K22: =IF($J22="ALB", IF(INTRO!$E$39="Non-endemic", IF($H22<>0, IF($I22=0, $D22*$H22, $D22*($H22-$G22)), 0), $D22*$H22), 0) -> 136323 | L22: 412458 | N22: 548781 | O22: =IF($J22="MBD", IF(INTRO!$E$39="Non-endemic", IF($H22<>0, IF($I22=0, $D22*$H22, $D22*($H22-$G22)), 0), $D22*$H22), 0) -> 0 | P22: 0 | R22: 0 | S22: 0 | T22: 0 | U22: 0 | V22: 0 | W22: 412458 | X22: 2063 | Z22: 0 | AA22: 0

Sheet PZQ
A1: Praziquantel (PZQ)
A2: Administrative structure, eligible population by age group, treatment plan and information about tablets
A4: TOTAL | D4: =SUM(D$9:D$1000) -> 1307018.37 | E4: =SUM(E$9:E$1000) -> 1834366.4 | F4: =SUM(F$9:F$1000) -> 3141384.77 | I4: =SUM(I$9:I$1000) -> 871309.5 | J4: 0 | K4: 1563882 | L4: 2435191.5 | M4: 2178273.75 | N4: 4691646 | O4: 2178273.75 | P4: 0 | Q4: 2178273.75 | R4: 2182
A6: Country administrative structure | D6: Population requiring treatment with PZQ | G6: Treatment plan | I6: Target population | M6: Praziquantel (PZQ)
A7: Country | B7: Province/State | C7: District | D7: SAC | E7: Adults | F7: Total | G7: SCH | H7: All SAC targeted? | I7: SAC | J7: SAC at lower level | K7: Adults | L7: Total | M7: SAC | N7: Adults | O7: Total required for SAC | P7: Remaining in stock | Q7: Tablets to be procured | R7: Bottle (600 mg) 1000 tablets
A9: =IF(INTRO!$E$43="Non-endemic"," ", IF(COUNTRY_INFO!A9=0," ",COUNTRY_INFO!A9)) -> Sierra Leone | B9: =IF(INTRO!$E$43="Non-endemic"," ", IF(COUNTRY_INFO!B9=0," ",COUNTRY_INFO!B9)) -> SOUHTERN | C9: =IF(INTRO!$E$43="Non-endemic"," ", IF(COUNTRY_INFO!C9=0," ",COUNTRY_INFO!C9)) -> BO | D9: =IF(INTRO!$E$43="Non-endemic", 0, IF(COUNTRY_INFO!$K9>0, IF(COUNTRY_INFO!$K9=4, 0, IF(COUNTRY_INFO!$K9=1, COUNTRY_INFO!$F9*0.33, IF(COUNTRY_INFO!$K9=2, COUNTRY_INFO!$F9*0.5, COUNTRY_INFO!$F9))), 0)) -> 80693 | E9: =IF(INTRO!$E$43="Non-endemic", 0, IF(COUNTRY_INFO!$K9>0, IF(COUNTRY_INFO!$K9=4, 0, IF(COUNTRY_INFO!$K9=1, 0, IF(COUNTRY_INFO!$K9=2, COUNTRY_INFO!$G9*0.2, COUNTRY_INFO!$G9))), 0)) -> 74579.2 | F9: =SUM(D9:E9) -> 155272.2 | G9: =IF(INTRO!$E$43="Non-endemic", "Not required", COUNTRY_INFO!S9) -> 1 | I9: =IF($D9=0,0,IF(AND($G9>0,$H9<>"Yes"),D9,IF(AND($G9>0,$H9="Yes"),COUNTRY_INFO!$F9,0))) -> 80693 | K9: =IF($G9>0,E9, 0) -> 74579.2 | L9: =IF($J9=0,SUM(I9,K9),SUM(J9,K9)) -> 155272.2 | M9: =IF($J9=0,$I9*2.5,$J9*2.5) -> 201732.5 | N9: =$K9*3 -> 223737.6 | O9: =M9 -> 201732.5 | P9: 0 | Q9: =IF($O9>$P9,O9-P9,0) -> 201732.5 | R9: =ROUNDUP($O9/1000,0) -> 202
A10: =IF(INTRO!$E$43="Non-endemic"," ", IF(COUNTRY_INFO!A10=0," ",COUNTRY_INFO!A10)) -> Sierra Leone | B10: =IF(INTRO!$E$43="Non-endemic"," ", IF(COUNTRY_INFO!B10=0," ",COUNTRY_INFO!B10)) -> SOUHTERN | C10: =IF(INTRO!$E$43="Non-endemic"," ", IF(COUNTRY_INFO!C10=0," ",COUNTRY_INFO!C10)) -> MOYAMBA | D10: =IF(INTRO!$E$43="Non-endemic", 0, IF(COUNTRY_INFO!$K10>0, IF(COUNTRY_INFO!$K10=4, 0, IF(COUNTRY_INFO!$K10=1, COUNTRY_INFO!$F10*0.33, IF(COUNTRY_INFO!$K10=2, COUNTRY_INFO!$F10*0.5, COUNTRY_INFO!$F10))), 0)) -> 32108.34 | E10: =IF(INTRO!$E$43="Non-endemic", 0, IF(COUNTRY_INFO!$K10>0, IF(COUNTRY_INFO!$K10=4, 0, IF(COUNTRY_INFO!$K10=1, 0, IF(COUNTRY_INFO!$K10=2, COUNTRY_INFO!$G10*0.2, COUNTRY_INFO!$G10))), 0)) -> 0 | F10: 32108.34 | G10: =IF(INTRO!$E$43="Non-endemic", "Not required", COUNTRY_INFO!S10) -> 0 | I10: =IF($D10=0,0,IF(AND($G10>0,$H10<>"Yes"),D10,IF(AND($G10>0,$H10="Yes"),COUNTRY_INFO!$F10,0))) -> 0 | K10: 0 | L10: 0 | M10: 0 | N10: 0 | O10: 0 | P10: 0 | Q10: 0 | R10: 0
A11: =IF(INTRO!$E$43="Non-endemic"," ", IF(COUNTRY_INFO!A11=0," ",COUNTRY_INFO!A11)) -> Sierra Leone | B11: =IF(INTRO!$E$43="Non-endemic"," ", IF(COUNTRY_INFO!B11=0," ",COUNTRY_INFO!B11)) -> SOUHTERN | C11: =IF(INTRO!$E$43="Non-endemic"," ", IF(COUNTRY_INFO!C11=0," ",COUNTRY_INFO!C11)) -> PUJEHUN | D11: =IF(INTRO!$E$43="Non-endemic", 0, IF(COUNTRY_INFO!$K11>0, IF(COUNTRY_INFO!$K11=4, 0, IF(COUNTRY_INFO!$K11=1, COUNTRY_INFO!$F11*0.33, IF(COUNTRY_INFO!$K11=2, COUNTRY_INFO!$F11*0.5, COUNTRY_INFO!$F11))), 0)) -> 31750.62 | E11: =IF(INTRO!$E$43="Non-endemic", 0, IF(COUNTRY_INFO!$K11>0, IF(COUNTRY_INFO!$K11=4, 0, IF(COUNTRY_INFO!$K11=1, 0, IF(COUNTRY_INFO!$K11=2, COUNTRY_INFO!$G11*0.2, COUNTRY_INFO!$G11))), 0)) -> 0 | F11: 31750.62 | G11: =IF(INTRO!$E$43="Non-endemic", "Not required", COUNTRY_INFO!S11) -> 0 | I11: =IF($D11=0,0,IF(AND($G11>0,$H11<>"Yes"),D11,IF(AND($G11>0,$H11="Yes"),COUNTRY_INFO!$F11,0))) -> 0 | K11: 0 | L11: 0 | M11: 0 | N11: 0 | O11: 0 | P11: 0 | Q11: 0 | R11: 0
A12: =IF(INTRO!$E$43="Non-endemic"," ", IF(COUNTRY_INFO!A12=0," ",COUNTRY_INFO!A12)) -> Sierra Leone | B12: =IF(INTRO!$E$43="Non-endemic"," ", IF(COUNTRY_INFO!B12=0," ",COUNTRY_INFO!B12)) -> SOUHTERN | C12: =IF(INTRO!$E$43="Non-endemic"," ", IF(COUNTRY_INFO!C12=0," ",COUNTRY_INFO!C12)) -> BONTHE | D12: =IF(INTRO!$E$43="Non-endemic", 0, IF(COUNTRY_INFO!$K12>0, IF(COUNTRY_INFO!$K12=4, 0, IF(COUNTRY_INFO!$K12=1, COUNTRY_INFO!$F12*0.33, IF(COUNTRY_INFO!$K12=2, COUNTRY_INFO!$F12*0.5, COUNTRY_INFO!$F12))), 0)) -> 0 | E12: =IF(INTRO!$E$43="Non-endemic", 0, IF(COUNTRY_INFO!$K12>0, IF(COUNTRY_INFO!$K12=4, 0, IF(COUNTRY_INFO!$K12=1, 0, IF(COUNTRY_INFO!$K12=2, COUNTRY_INFO!$G12*0.2, COUNTRY_INFO!$G12))), 0)) -> 0 | F12: 0 | G12: =IF(INTRO!$E$43="Non-endemic", "Not required", COUNTRY_INFO!S12) -> 0 | I12: =IF($D12=0,0,IF(AND($G12>0,$H12<>"Yes"),D12,IF(AND($G12>0,$H12="Yes"),COUNTRY_INFO!$F12,0))) -> 0 | K12: 0 | L12: 0 | M12: 0 | N12: 0 | O12: 0 | P12: 0 | Q12: 0 | R12: 0
A13: =IF(INTRO!$E$43="Non-endemic"," ", IF(COUNTRY_INFO!A13=0," ",COUNTRY_INFO!A13)) -> Sierra Leone | B13: =IF(INTRO!$E$43="Non-endemic"," ", IF(COUNTRY_INFO!B13=0," ",COUNTRY_INFO!B13)) -> EASTERN | C13: =IF(INTRO!$E$43="Non-endemic"," ", IF(COUNTRY_INFO!C13=0," ",COUNTRY_INFO!C13)) -> KENEMA | D13: =IF(INTRO!$E$43="Non-endemic", 0, IF(COUNTRY_INFO!$K13>0, IF(COUNTRY_INFO!$K13=4, 0, IF(COUNTRY_INFO!$K13=1, COUNTRY_INFO!$F13*0.33, IF(COUNTRY_INFO!$K13=2, COUNTRY_INFO!$F13*0.5, COUNTRY_INFO!$F13))), 0)) -> 212401 | E13: =IF(INTRO!$E$43="Non-endemic", 0, IF(COUNTRY_INFO!$K13>0, IF(COUNTRY_INFO!$K13=4, 0, IF(COUNTRY_INFO!$K13=1, 0, IF(COUNTRY_INFO!$K13=2, COUNTRY_INFO!$G13*0.2, COUNTRY_INFO!$G13))), 0)) -> 490770 | F13: 703171 | G13: =IF(INTRO!$E$43="Non-endemic", "Not required", COUNTRY_INFO!S13) -> 1 | I13: =IF($D13=0,0,IF(AND($G13>0,$H13<>"Yes"),D13,IF(AND($G13>0,$H13="Yes"),COUNTRY_INFO!$F13,0))) -> 212401 | K13: 490770 | L13: 703171 | M13: 531002.5 | N13: 1472310 | O13: 531002.5 | P13: 0 | Q13: 531002.5 | R13: 532
A14: =IF(INTRO!$E$43="Non-endemic"," ", IF(COUNTRY_INFO!A14=0," ",COUNTRY_INFO!A14)) -> Sierra Leone | B14: =IF(INTRO!$E$43="Non-endemic"," ", IF(COUNTRY_INFO!B14=0," ",COUNTRY_INFO!B14)) -> EASTERN | C14: =IF(INTRO!$E$43="Non-endemic"," ", IF(COUNTRY_INFO!C14=0," ",COUNTRY_INFO!C14)) -> KONO | D14: =IF(INTRO!$E$43="Non-endemic", 0, IF(COUNTRY_INFO!$K14>0, IF(COUNTRY_INFO!$K14=4, 0, IF(COUNTRY_INFO!$K14=1, COUNTRY_INFO!$F14*0.33, IF(COUNTRY_INFO!$K14=2, COUNTRY_INFO!$F14*0.5, COUNTRY_INFO!$F14))), 0)) -> 79317 | E14: =IF(INTRO!$E$43="Non-endemic", 0, IF(COUNTRY_INFO!$K14>0, IF(COUNTRY_INFO!$K14=4, 0, IF(COUNTRY_INFO!$K14=1, 0, IF(COUNTRY_INFO!$K14=2, COUNTRY_INFO!$G14*0.2, COUNTRY_INFO!$G14))), 0)) -> 73307.4 | F14: 152624.4 | G14: =IF(INTRO!$E$43="Non-endemic", "Not required", COUNTRY_INFO!S14) -> 1 | I14: =IF($D14=0,0,IF(AND($G14>0,$H14<>"Yes"),D14,IF(AND($G14>0,$H14="Yes"),COUNTRY_INFO!$F14,0))) -> 79317 | K14: 73307.4 | L14: 152624.4 | M14: 198292.5 | N14: 219922.2 | O14: 198292.5 | P14: 0 | Q14: 198292.5 | R14: 199
A15: =IF(INTRO!$E$43="Non-endemic"," ", IF(COUNTRY_INFO!A15=0," ",COUNTRY_INFO!A15)) -> Sierra Leone | B15: =IF(INTRO!$E$43="Non-endemic"," ", IF(COUNTRY_INFO!B15=0," ",COUNTRY_INFO!B15)) -> EASTERN | C15: =IF(INTRO!$E$43="Non-endemic"," ", IF(COUNTRY_INFO!C15=0," ",COUNTRY_INFO!C15)) -> KAILAHUN | D15: =IF(INTRO!$E$43="Non-endemic", 0, IF(COUNTRY_INFO!$K15>0, IF(COUNTRY_INFO!$K15=4, 0, IF(COUNTRY_INFO!$K15=1, COUNTRY_INFO!$F15*0.33, IF(COUNTRY_INFO!$K15=2, COUNTRY_INFO!$F15*0.5, COUNTRY_INFO!$F15))), 0)) -> 195804 | E15: =IF(INTRO!$E$43="Non-endemic", 0, IF(COUNTRY_INFO!$K15>0, IF(COUNTRY_INFO!$K15=4, 0, IF(COUNTRY_INFO!$K15=1, 0, IF(COUNTRY_INFO!$K15=2, COUNTRY_INFO!$G15*0.2, COUNTRY_INFO!$G15))), 0)) -> 452422 | F15: 648226 | G15: =IF(INTRO!$E$43="Non-endemic", "Not required", COUNTRY_INFO!S15) -> 1 | I15: =IF($D15=0,0,IF(AND($G15>0,$H15<>"Yes"),D15,IF(AND($G15>0,$H15="Yes"),COUNTRY_INFO!$F15,0))) -> 195804 | K15: 452422 | L15: 648226 | M15: 489510 | N15: 1357266 | O15: 489510 | P15: 0 | Q15: 489510 | R15: 490
A16: =IF(INTRO!$E$43="Non-endemic"," ", IF(COUNTRY_INFO!A16=0," ",COUNTRY_INFO!A16)) -> Sierra Leone | B16: =IF(INTRO!$E$43="Non-endemic"," ", IF(COUNTRY_INFO!B16=0," ",COUNTRY_INFO!B16)) -> NORTHERN | C16: =IF(INTRO!$E$43="Non-endemic"," ", IF(COUNTRY_INFO!C16=0," ",COUNTRY_INFO!C16)) -> BOMBALI | D16: =IF(INTRO!$E$43="Non-endemic", 0, IF(COUNTRY_INFO!$K16>0, IF(COUNTRY_INFO!$K16=4, 0, IF(COUNTRY_INFO!$K16=1, COUNTRY_INFO!$F16*0.33, IF(COUNTRY_INFO!$K16=2, COUNTRY_INFO!$F16*0.5, COUNTRY_INFO!$F16))), 0)) -> 89395.5 | E16: =IF(INTRO!$E$43="Non-endemic", 0, IF(COUNTRY_INFO!$K16>0, IF(COUNTRY_INFO!$K16=4, 0, IF(COUNTRY_INFO!$K16=1, 0, IF(COUNTRY_INFO!$K16=2, COUNTRY_INFO!$G16*0.2, COUNTRY_INFO!$G16))), 0)) -> 82622.4 | F16: 172017.9 | G16: =IF(INTRO!$E$43="Non-endemic", "Not required", COUNTRY_INFO!S16) -> 1 | I16: =IF($D16=0,0,IF(AND($G16>0,$H16<>"Yes"),D16,IF(AND($G16>0,$H16="Yes"),COUNTRY_INFO!$F16,0))) -> 89395.5 | K16: 82622.4 | L16: 172017.9 | M16: 223488.75 | N16: 247867.2 | O16: 223488.75 | P16: 0 | Q16: 223488.75 | R16: 224
A17: =IF(INTRO!$E$43="Non-endemic"," ", IF(COUNTRY_INFO!A17=0," ",COUNTRY_INFO!A17)) -> Sierra Leone | B17: =IF(INTRO!$E$43="Non-endemic"," ", IF(COUNTRY_INFO!B17=0," ",COUNTRY_INFO!B17)) -> NORTHERN | C17: =IF(INTRO!$E$43="Non-endemic"," ", IF(COUNTRY_INFO!C17=0," ",COUNTRY_INFO!C17)) -> TONKOLILI | D17: =IF(INTRO!$E$43="Non-endemic", 0, IF(COUNTRY_INFO!$K17>0, IF(COUNTRY_INFO!$K17=4, 0, IF(COUNTRY_INFO!$K17=1, COUNTRY_INFO!$F17*0.33, IF(COUNTRY_INFO!$K17=2, COUNTRY_INFO!$F17*0.5, COUNTRY_INFO!$F17))), 0)) -> 74721 | E17: =IF(INTRO!$E$43="Non-endemic", 0, IF(COUNTRY_INFO!$K17>0, IF(COUNTRY_INFO!$K17=4, 0, IF(COUNTRY_INFO!$K17=1, 0, IF(COUNTRY_INFO!$K17=2, COUNTRY_INFO!$G17*0.2, COUNTRY_INFO!$G17))), 0)) -> 69060 | F17: 143781 | G17: =IF(INTRO!$E$43="Non-endemic", "Not required", COUNTRY_INFO!S17) -> 1 | I17: =IF($D17=0,0,IF(AND($G17>0,$H17<>"Yes"),D17,IF(AND($G17>0,$H17="Yes"),COUNTRY_INFO!$F17,0))) -> 74721 | K17: 69060 | L17: 143781 | M17: 186802.5 | N17: 207180 | O17: 186802.5 | P17: 0 | Q17: 186802.5 | R17: 187
A18: =IF(INTRO!$E$43="Non-endemic"," ", IF(COUNTRY_INFO!A18=0," ",COUNTRY_INFO!A18)) -> Sierra Leone | B18: =IF(INTRO!$E$43="Non-endemic"," ", IF(COUNTRY_INFO!B18=0," ",COUNTRY_INFO!B18)) -> NORTHERN | C18: =IF(INTRO!$E$43="Non-endemic"," ", IF(COUNTRY_INFO!C18=0," ",COUNTRY_INFO!C18)) -> PORT LOKO | D18: =IF(INTRO!$E$43="Non-endemic", 0, IF(COUNTRY_INFO!$K18>0, IF(COUNTRY_INFO!$K18=4, 0, IF(COUNTRY_INFO!$K18=1, COUNTRY_INFO!$F18*0.33, IF(COUNTRY_INFO!$K18=2, COUNTRY_INFO!$F18*0.5, COUNTRY_INFO!$F18))), 0)) -> 86428.5 | E18: =IF(INTRO!$E$43="Non-endemic", 0, IF(COUNTRY_INFO!$K18>0, IF(COUNTRY_INFO!$K18=4, 0, IF(COUNTRY_INFO!$K18=1, 0, IF(COUNTRY_INFO!$K18=2, COUNTRY_INFO!$G18*0.2, COUNTRY_INFO!$G18))), 0)) -> 79880.4 | F18: 166308.9 | G18: =IF(INTRO!$E$43="Non-endemic", "Not required", COUNTRY_INFO!S18) -> 0 | I18: =IF($D18=0,0,IF(AND($G18>0,$H18<>"Yes"),D18,IF(AND($G18>0,$H18="Yes"),COUNTRY_INFO!$F18,0))) -> 0 | K18: 0 | L18: 0 | M18: 0 | N18: 0 | O18: 0 | P18: 0 | Q18: 0 | R18: 0
A19: =IF(INTRO!$E$43="Non-endemic"," ", IF(COUNTRY_INFO!A19=0," ",COUNTRY_INFO!A19)) -> Sierra Leone | B19: =IF(INTRO!$E$43="Non-endemic"," ", IF(COUNTRY_INFO!B19=0," ",COUNTRY_INFO!B19)) -> NORTHERN | C19: =IF(INTRO!$E$43="Non-endemic"," ", IF(COUNTRY_INFO!C19=0," ",COUNTRY_INFO!C19)) -> KOINADUGU | D19: =IF(INTRO!$E$43="Non-endemic", 0, IF(COUNTRY_INFO!$K19>0, IF(COUNTRY_INFO!$K19=4, 0, IF(COUNTRY_INFO!$K19=1, COUNTRY_INFO!$F19*0.33, IF(COUNTRY_INFO!$K19=2, COUNTRY_INFO!$F19*0.5, COUNTRY_INFO!$F19))), 0)) -> 138978 | E19: =IF(INTRO!$E$43="Non-endemic", 0, IF(COUNTRY_INFO!$K19>0, IF(COUNTRY_INFO!$K19=4, 0, IF(COUNTRY_INFO!$K19=1, 0, IF(COUNTRY_INFO!$K19=2, COUNTRY_INFO!$G19*0.2, COUNTRY_INFO!$G19))), 0)) -> 321121 | F19: 460099 | G19: =IF(INTRO!$E$43="Non-endemic", "Not required", COUNTRY_INFO!S19) -> 1 | I19: =IF($D19=0,0,IF(AND($G19>0,$H19<>"Yes"),D19,IF(AND($G19>0,$H19="Yes"),COUNTRY_INFO!$F19,0))) -> 138978 | K19: 321121 | L19: 460099 | M19: 347445 | N19: 963363 | O19: 347445 | P19: 0 | Q19: 347445 | R19: 348
A20: =IF(INTRO!$E$43="Non-endemic"," ", IF(COUNTRY_INFO!A20=0," ",COUNTRY_INFO!A20)) -> Sierra Leone | B20: =IF(INTRO!$E$43="Non-endemic"," ", IF(COUNTRY_INFO!B20=0," ",COUNTRY_INFO!B20)) -> NORTHERN | C20: =IF(INTRO!$E$43="Non-endemic"," ", IF(COUNTRY_INFO!C20=0," ",COUNTRY_INFO!C20)) -> KAMBIA | D20: =IF(INTRO!$E$43="Non-endemic", 0, IF(COUNTRY_INFO!$K20>0, IF(COUNTRY_INFO!$K20=4, 0, IF(COUNTRY_INFO!$K20=1, COUNTRY_INFO!$F20*0.33, IF(COUNTRY_INFO!$K20=2, COUNTRY_INFO!$F20*0.5, COUNTRY_INFO!$F20))), 0)) -> 33808.83 | E20: =IF(INTRO!$E$43="Non-endemic", 0, IF(COUNTRY_INFO!$K20>0, IF(COUNTRY_INFO!$K20=4, 0, IF(COUNTRY_INFO!$K20=1, 0, IF(COUNTRY_INFO!$K20=2, COUNTRY_INFO!$G20*0.2, COUNTRY_INFO!$G20))), 0)) -> 0 | F20: 33808.83 | G20: =IF(INTRO!$E$43="Non-endemic", "Not required", COUNTRY_INFO!S20) -> 0 | I20: =IF($D20=0,0,IF(AND($G20>0,$H20<>"Yes"),D20,IF(AND($G20>0,$H20="Yes"),COUNTRY_INFO!$F20,0))) -> 0 | K20: 0 | L20: 0 | M20: 0 | N20: 0 | O20: 0 | P20: 0 | Q20: 0 | R20: 0
A21: =IF(INTRO!$E$43="Non-endemic"," ", IF(COUNTRY_INFO!A21=0," ",COUNTRY_INFO!A21)) -> Sierra Leone | B21: =IF(INTRO!$E$43="Non-endemic"," ", IF(COUNTRY_INFO!B21=0," ",COUNTRY_INFO!B21)) -> WESTERN | C21: =IF(INTRO!$E$43="Non-endemic"," ", IF(COUNTRY_INFO!C21=0," ",COUNTRY_INFO!C21)) -> WESTERN RURAL | D21: =IF(INTRO!$E$43="Non-endemic", 0, IF(COUNTRY_INFO!$K21>0, IF(COUNTRY_INFO!$K21=4, 0, IF(COUNTRY_INFO!$K21=1, COUNTRY_INFO!$F21*0.33, IF(COUNTRY_INFO!$K21=2, COUNTRY_INFO!$F21*0.5, COUNTRY_INFO!$F21))), 0)) -> 45383.58 | E21: =IF(INTRO!$E$43="Non-endemic", 0, IF(COUNTRY_INFO!$K21>0, IF(COUNTRY_INFO!$K21=4, 0, IF(COUNTRY_INFO!$K21=1, 0, IF(COUNTRY_INFO!$K21=2, COUNTRY_INFO!$G21*0.2, COUNTRY_INFO!$G21))), 0)) -> 0 | F21: 45383.58 | G21: =IF(INTRO!$E$43="Non-endemic", "Not required", COUNTRY_INFO!S21) -> 0 | I21: =IF($D21=0,0,IF(AND($G21>0,$H21<>"Yes"),D21,IF(AND($G21>0,$H21="Yes"),COUNTRY_INFO!$F21,0))) -> 0 | K21: 0 | L21: 0 | M21: 0 | N21: 0 | O21: 0 | P21: 0 | Q21: 0 | R21: 0
A22: =IF(INTRO!$E$43="Non-endemic"," ", IF(COUNTRY_INFO!A22=0," ",COUNTRY_INFO!A22)) -> Sierra Leone | B22: =IF(INTRO!$E$43="Non-endemic"," ", IF(COUNTRY_INFO!B22=0," ",COUNTRY_INFO!B22)) -> WESTERN | C22: =IF(INTRO!$E$43="Non-endemic"," ", IF(COUNTRY_INFO!C22=0," ",COUNTRY_INFO!C22)) -> WESTERN URBAN | D22: =IF(INTRO!$E$43="Non-endemic", 0, IF(COUNTRY_INFO!$K22>0, IF(COUNTRY_INFO!$K22=4, 0, IF(COUNTRY_INFO!$K22=1, COUNTRY_INFO!$F22*0.33, IF(COUNTRY_INFO!$K22=2, COUNTRY_INFO!$F22*0.5, COUNTRY_INFO!$F22))), 0)) -> 206229 | E22: =IF(INTRO!$E$43="Non-endemic", 0, IF(COUNTRY_INFO!$K22>0, IF(COUNTRY_INFO!$K22=4, 0, IF(COUNTRY_INFO!$K22=1, 0, IF(COUNTRY_INFO!$K22=2, COUNTRY_INFO!$G22*0.2, COUNTRY_INFO!$G22))), 0)) -> 190604 | F22: 396833 | G22: =IF(INTRO!$E$43="Non-endemic", "Not required", COUNTRY_INFO!S22) -> 0 | I22: =IF($D22=0,0,IF(AND($G22>0,$H22<>"Yes"),D22,IF(AND($G22>0,$H22="Yes"),COUNTRY_INFO!$F22,0))) -> 0 | K22: 0 | L22: 0 | M22: 0 | N22: 0 | O22: 0 | P22: 0 | Q22: 0 | R22: 0

Sheet IVM
A1: Ivermectin (IVM)
A2: Administrative structure, eligible population by age group, treatment plan and information about tablets
A4: TOTAL | D4: =SUM(D$9:D$1000) -> 6143624 | G4: =SUM(G$9:G$1000) -> 2858692 | H4: 5688331 | I4: 0 | J4: 5688331 | K4: 1274820.4 | L4: 9197809.6 | M4: 6729517.2 | N4: 17202147.2 | O4: 0 | P4: 17202147.2 | Q4: 34409
A6: Country administrative structure | D6: Population requiring treatment with IVM | E6: Treatment plan | G6: Target population | K6: Ivermectin (IVM)
A7: Country | B7: Province/State | C7: District | E7: LF | F7: Oncho | G7: LF | H7: Oncho | K7: LF only | L7: Oncho only | M7: LF+Oncho | N7: Total required | O7: Remaining in stock | P7: Tablets to be procured | Q7: Bottles (3mg) 500 tablets
H8: in the district | I8: in villages | J8: total
A9: =IF(INTRO!$E$39="Non-endemic"," ",IF(COUNTRY_INFO!A9=0," ",COUNTRY_INFO!A9)) -> Sierra Leone | B9: =IF(INTRO!$E$39="Non-endemic"," ",IF(COUNTRY_INFO!B9=0," ",COUNTRY_INFO!B9)) -> SOUHTERN | C9: =IF(INTRO!$E$39="Non-endemic"," ",IF(COUNTRY_INFO!C9=0," ",COUNTRY_INFO!C9)) -> BO | D9: =IF(INTRO!$E$39="Non-endemic",0,IF(INTRO!$E$39="Endemic but PC is not required",IF(COUNTRY_INFO!$H9=1,COUNTRY_INFO!F9+COUNTRY_INFO!G9,0),IF(COUNTRY_INFO!$H9=1,COUNTRY_INFO!F9+COUNTRY_INFO!G9,IF(COUNTRY_INFO!$I9=1,IF(COUNTRY_INFO!M9>=(COUNTRY_INFO!F9+COUNTRY_INFO!G9),COUNTRY_INFO!F9+COUNTRY_INFO!G9,COUNTRY_INFO!$M9),0)))) -> 534282 | E9: =IF(AND(INTRO!$E$39="Non-endemic",INTRO!$E$37="Non-endemic"),"Not required",IF(INTRO!$E$39="Non-endemic","Treat with DEC",COUNTRY_INFO!P9)) -> 0 | F9: =IF(INTRO!$E$39<>"Non-endemic",COUNTRY_INFO!Q9,"Not required") -> 1 | G9: =IF(COUNTRY_INFO!H9=1, IF($E9=1,$D9, 0),0) -> 0 | H9: =IF(INTRO!$E$39<>"Endemic",0, IF(AND(COUNTRY_INFO!$I9=1,$F9<>0),IF(COUNTRY_INFO!M9>=(COUNTRY_INFO!F9+COUNTRY_INFO!G9),COUNTRY_INFO!F9+COUNTRY_INFO!G9,COUNTRY_INFO!$M9), 0)) -> 534282 | J9: =IF(I9=0,H9,IF(I9>H9,H9,I9)) -> 534282 | K9: =IF(G9<J9,0,IF($E9=1, (G9-J9)*2.8, 0)) -> 0 | L9: =IF($E9<$F9, J9*(F9-E9)*2.8, 0) -> 1495989.6 | M9: =IF(AND($E9=1, $F9<>0), J9*2.8, 0) -> 0 | N9: =SUM(K9:M9) -> 1495989.6 | P9: =IF($N9>$O9,$N9-$O9,0) -> 1495989.6 | Q9: =ROUNDUP($N9/500,0) -> 2992
A10: =IF(INTRO!$E$39="Non-endemic"," ",IF(COUNTRY_INFO!A10=0," ",COUNTRY_INFO!A10)) -> Sierra Leone | B10: =IF(INTRO!$E$39="Non-endemic"," ",IF(COUNTRY_INFO!B10=0," ",COUNTRY_INFO!B10)) -> SOUHTERN | C10: =IF(INTRO!$E$39="Non-endemic"," ",IF(COUNTRY_INFO!C10=0," ",COUNTRY_INFO!C10)) -> MOYAMBA | D10: =IF(INTRO!$E$39="Non-endemic",0,IF(INTRO!$E$39="Endemic but PC is not required",IF(COUNTRY_INFO!$H10=1,COUNTRY_INFO!F10+COUNTRY_INFO!G10,0),IF(COUNTRY_INFO!$H10=1,COUNTRY_INFO!F10+COUNTRY_INFO!G10,IF(COUNTRY_INFO!$I10=1,IF(COUNTRY_INFO!M10>=(COUNTRY_INFO!F10+COUNTRY_INFO!G10),COUNTRY_INFO!F10+COUNTRY_INFO!G10,COUNTRY_INFO!$M10),0)))) -> 322113 | E10: =IF(AND(INTRO!$E$39="Non-endemic",INTRO!$E$37="Non-endemic"),"Not required",IF(INTRO!$E$39="Non-endemic","Treat with DEC",COUNTRY_INFO!P10)) -> 0 | F10: =IF(INTRO!$E$39<>"Non-endemic",COUNTRY_INFO!Q10,"Not required") -> 1 | G10: =IF(COUNTRY_INFO!H10=1, IF($E10=1,$D10, 0),0) -> 0 | H10: =IF(INTRO!$E$39<>"Endemic",0, IF(AND(COUNTRY_INFO!$I10=1,$F10<>0),IF(COUNTRY_INFO!M10>=(COUNTRY_INFO!F10+COUNTRY_INFO!G10),COUNTRY_INFO!F10+COUNTRY_INFO!G10,COUNTRY_INFO!$M10), 0)) -> 322113 | J10: 322113 | K10: 0 | L10: 901916.4 | M10: 0 | N10: 901916.4 | O10: 0 | P10: 901916.4 | Q10: 1804
A11: =IF(INTRO!$E$39="Non-endemic"," ",IF(COUNTRY_INFO!A11=0," ",COUNTRY_INFO!A11)) -> Sierra Leone | B11: =IF(INTRO!$E$39="Non-endemic"," ",IF(COUNTRY_INFO!B11=0," ",COUNTRY_INFO!B11)) -> SOUHTERN | C11: =IF(INTRO!$E$39="Non-endemic"," ",IF(COUNTRY_INFO!C11=0," ",COUNTRY_INFO!C11)) -> PUJEHUN | D11: =IF(INTRO!$E$39="Non-endemic",0,IF(INTRO!$E$39="Endemic but PC is not required",IF(COUNTRY_INFO!$H11=1,COUNTRY_INFO!F11+COUNTRY_INFO!G11,0),IF(COUNTRY_INFO!$H11=1,COUNTRY_INFO!F11+COUNTRY_INFO!G11,IF(COUNTRY_INFO!$I11=1,IF(COUNTRY_INFO!M11>=(COUNTRY_INFO!F11+COUNTRY_INFO!G11),COUNTRY_INFO!F11+COUNTRY_INFO!G11,COUNTRY_INFO!$M11),0)))) -> 318526 | E11: =IF(AND(INTRO!$E$39="Non-endemic",INTRO!$E$37="Non-endemic"),"Not required",IF(INTRO!$E$39="Non-endemic","Treat with DEC",COUNTRY_INFO!P11)) -> 0 | F11: =IF(INTRO!$E$39<>"Non-endemic",COUNTRY_INFO!Q11,"Not required") -> 1 | G11: =IF(COUNTRY_INFO!H11=1, IF($E11=1,$D11, 0),0) -> 0 | H11: =IF(INTRO!$E$39<>"Endemic",0, IF(AND(COUNTRY_INFO!$I11=1,$F11<>0),IF(COUNTRY_INFO!M11>=(COUNTRY_INFO!F11+COUNTRY_INFO!G11),COUNTRY_INFO!F11+COUNTRY_INFO!G11,COUNTRY_INFO!$M11), 0)) -> 318526 | J11: 318526 | K11: 0 | L11: 891872.8 | M11: 0 | N11: 891872.8 | O11: 0 | P11: 891872.8 | Q11: 1784
A12: =IF(INTRO!$E$39="Non-endemic"," ",IF(COUNTRY_INFO!A12=0," ",COUNTRY_INFO!A12)) -> Sierra Leone | B12: =IF(INTRO!$E$39="Non-endemic"," ",IF(COUNTRY_INFO!B12=0," ",COUNTRY_INFO!B12)) -> SOUHTERN | C12: =IF(INTRO!$E$39="Non-endemic"," ",IF(COUNTRY_INFO!C12=0," ",COUNTRY_INFO!C12)) -> BONTHE | D12: =IF(INTRO!$E$39="Non-endemic",0,IF(INTRO!$E$39="Endemic but PC is not required",IF(COUNTRY_INFO!$H12=1,COUNTRY_INFO!F12+COUNTRY_INFO!G12,0),IF(COUNTRY_INFO!$H12=1,COUNTRY_INFO!F12+COUNTRY_INFO!G12,IF(COUNTRY_INFO!$I12=1,IF(COUNTRY_INFO!M12>=(COUNTRY_INFO!F12+COUNTRY_INFO!G12),COUNTRY_INFO!F12+COUNTRY_INFO!G12,COUNTRY_INFO!$M12),0)))) -> 178665 | E12: =IF(AND(INTRO!$E$39="Non-endemic",INTRO!$E$37="Non-endemic"),"Not required",IF(INTRO!$E$39="Non-endemic","Treat with DEC",COUNTRY_INFO!P12)) -> 0 | F12: =IF(INTRO!$E$39<>"Non-endemic",COUNTRY_INFO!Q12,"Not required") -> 1 | G12: =IF(COUNTRY_INFO!H12=1, IF($E12=1,$D12, 0),0) -> 0 | H12: =IF(INTRO!$E$39<>"Endemic",0, IF(AND(COUNTRY_INFO!$I12=1,$F12<>0),IF(COUNTRY_INFO!M12>=(COUNTRY_INFO!F12+COUNTRY_INFO!G12),COUNTRY_INFO!F12+COUNTRY_INFO!G12,COUNTRY_INFO!$M12), 0)) -> 178665 | J12: 178665 | K12: 0 | L12: 500262 | M12: 0 | N12: 500262 | O12: 0 | P12: 500262 | Q12: 1001
A13: =IF(INTRO!$E$39="Non-endemic"," ",IF(COUNTRY_INFO!A13=0," ",COUNTRY_INFO!A13)) -> Sierra Leone | B13: =IF(INTRO!$E$39="Non-endemic"," ",IF(COUNTRY_INFO!B13=0," ",COUNTRY_INFO!B13)) -> EASTERN | C13: =IF(INTRO!$E$39="Non-endemic"," ",IF(COUNTRY_INFO!C13=0," ",COUNTRY_INFO!C13)) -> KENEMA | D13: =IF(INTRO!$E$39="Non-endemic",0,IF(INTRO!$E$39="Endemic but PC is not required",IF(COUNTRY_INFO!$H13=1,COUNTRY_INFO!F13+COUNTRY_INFO!G13,0),IF(COUNTRY_INFO!$H13=1,COUNTRY_INFO!F13+COUNTRY_INFO!G13,IF(COUNTRY_INFO!$I13=1,IF(COUNTRY_INFO!M13>=(COUNTRY_INFO!F13+COUNTRY_INFO!G13),COUNTRY_INFO!F13+COUNTRY_INFO!G13,COUNTRY_INFO!$M13),0)))) -> 703171 | E13: =IF(AND(INTRO!$E$39="Non-endemic",INTRO!$E$37="Non-endemic"),"Not required",IF(INTRO!$E$39="Non-endemic","Treat with DEC",COUNTRY_INFO!P13)) -> 1 | F13: =IF(INTRO!$E$39<>"Non-endemic",COUNTRY_INFO!Q13,"Not required") -> 1 | G13: =IF(COUNTRY_INFO!H13=1, IF($E13=1,$D13, 0),0) -> 703171 | H13: =IF(INTRO!$E$39<>"Endemic",0, IF(AND(COUNTRY_INFO!$I13=1,$F13<>0),IF(COUNTRY_INFO!M13>=(COUNTRY_INFO!F13+COUNTRY_INFO!G13),COUNTRY_INFO!F13+COUNTRY_INFO!G13,COUNTRY_INFO!$M13), 0)) -> 703171 | J13: 703171 | K13: 0 | L13: 0 | M13: 1968878.8 | N13: 1968878.8 | O13: 0 | P13: 1968878.8 | Q13: 3938
A14: =IF(INTRO!$E$39="Non-endemic"," ",IF(COUNTRY_INFO!A14=0," ",COUNTRY_INFO!A14)) -> Sierra Leone | B14: =IF(INTRO!$E$39="Non-endemic"," ",IF(COUNTRY_INFO!B14=0," ",COUNTRY_INFO!B14)) -> EASTERN | C14: =IF(INTRO!$E$39="Non-endemic"," ",IF(COUNTRY_INFO!C14=0," ",COUNTRY_INFO!C14)) -> KONO | D14: =IF(INTRO!$E$39="Non-endemic",0,IF(INTRO!$E$39="Endemic but PC is not required",IF(COUNTRY_INFO!$H14=1,COUNTRY_INFO!F14+COUNTRY_INFO!G14,0),IF(COUNTRY_INFO!$H14=1,COUNTRY_INFO!F14+COUNTRY_INFO!G14,IF(COUNTRY_INFO!$I14=1,IF(COUNTRY_INFO!M14>=(COUNTRY_INFO!F14+COUNTRY_INFO!G14),COUNTRY_INFO!F14+COUNTRY_INFO!G14,COUNTRY_INFO!$M14),0)))) -> 525171 | E14: =IF(AND(INTRO!$E$39="Non-endemic",INTRO!$E$37="Non-endemic"),"Not required",IF(INTRO!$E$39="Non-endemic","Treat with DEC",COUNTRY_INFO!P14)) -> 0 | F14: =IF(INTRO!$E$39<>"Non-endemic",COUNTRY_INFO!Q14,"Not required") -> 1 | G14: =IF(COUNTRY_INFO!H14=1, IF($E14=1,$D14, 0),0) -> 0 | H14: =IF(INTRO!$E$39<>"Endemic",0, IF(AND(COUNTRY_INFO!$I14=1,$F14<>0),IF(COUNTRY_INFO!M14>=(COUNTRY_INFO!F14+COUNTRY_INFO!G14),COUNTRY_INFO!F14+COUNTRY_INFO!G14,COUNTRY_INFO!$M14), 0)) -> 525171 | J14: 525171 | K14: 0 | L14: 1470478.8 | M14: 0 | N14: 1470478.8 | O14: 0 | P14: 1470478.8 | Q14: 2941
A15: =IF(INTRO!$E$39="Non-endemic"," ",IF(COUNTRY_INFO!A15=0," ",COUNTRY_INFO!A15)) -> Sierra Leone | B15: =IF(INTRO!$E$39="Non-endemic"," ",IF(COUNTRY_INFO!B15=0," ",COUNTRY_INFO!B15)) -> EASTERN | C15: =IF(INTRO!$E$39="Non-endemic"," ",IF(COUNTRY_INFO!C15=0," ",COUNTRY_INFO!C15)) -> KAILAHUN | D15: =IF(INTRO!$E$39="Non-endemic",0,IF(INTRO!$E$39="Endemic but PC is not required",IF(COUNTRY_INFO!$H15=1,COUNTRY_INFO!F15+COUNTRY_INFO!G15,0),IF(COUNTRY_INFO!$H15=1,COUNTRY_INFO!F15+COUNTRY_INFO!G15,IF(COUNTRY_INFO!$I15=1,IF(COUNTRY_INFO!M15>=(COUNTRY_INFO!F15+COUNTRY_INFO!G15),COUNTRY_INFO!F15+COUNTRY_INFO!G15,COUNTRY_INFO!$M15),0)))) -> 648226 | E15: =IF(AND(INTRO!$E$39="Non-endemic",INTRO!$E$37="Non-endemic"),"Not required",IF(INTRO!$E$39="Non-endemic","Treat with DEC",COUNTRY_INFO!P15)) -> 1 | F15: =IF(INTRO!$E$39<>"Non-endemic",COUNTRY_INFO!Q15,"Not required") -> 1 | G15: =IF(COUNTRY_INFO!H15=1, IF($E15=1,$D15, 0),0) -> 648226 | H15: =IF(INTRO!$E$39<>"Endemic",0, IF(AND(COUNTRY_INFO!$I15=1,$F15<>0),IF(COUNTRY_INFO!M15>=(COUNTRY_INFO!F15+COUNTRY_INFO!G15),COUNTRY_INFO!F15+COUNTRY_INFO!G15,COUNTRY_INFO!$M15), 0)) -> 648226 | J15: 648226 | K15: 0 | L15: 0 | M15: 1815032.8 | N15: 1815032.8 | O15: 0 | P15: 1815032.8 | Q15: 3631
A16: =IF(INTRO!$E$39="Non-endemic"," ",IF(COUNTRY_INFO!A16=0," ",COUNTRY_INFO!A16)) -> Sierra Leone | B16: =IF(INTRO!$E$39="Non-endemic"," ",IF(COUNTRY_INFO!B16=0," ",COUNTRY_INFO!B16)) -> NORTHERN | C16: =IF(INTRO!$E$39="Non-endemic"," ",IF(COUNTRY_INFO!C16=0," ",COUNTRY_INFO!C16)) -> BOMBALI | D16: =IF(INTRO!$E$39="Non-endemic",0,IF(INTRO!$E$39="Endemic but PC is not required",IF(COUNTRY_INFO!$H16=1,COUNTRY_INFO!F16+COUNTRY_INFO!G16,0),IF(COUNTRY_INFO!$H16=1,COUNTRY_INFO!F16+COUNTRY_INFO!G16,IF(COUNTRY_INFO!$I16=1,IF(COUNTRY_INFO!M16>=(COUNTRY_INFO!F16+COUNTRY_INFO!G16),COUNTRY_INFO!F16+COUNTRY_INFO!G16,COUNTRY_INFO!$M16),0)))) -> 591903 | E16: =IF(AND(INTRO!$E$39="Non-endemic",INTRO!$E$37="Non-endemic"),"Not required",IF(INTRO!$E$39="Non-endemic","Treat with DEC",COUNTRY_INFO!P16)) -> 1 | F16: =IF(INTRO!$E$39<>"Non-endemic",COUNTRY_INFO!Q16,"Not required") -> 1 | G16: =IF(COUNTRY_INFO!H16=1, IF($E16=1,$D16, 0),0) -> 591903 | H16: =IF(INTRO!$E$39<>"Endemic",0, IF(AND(COUNTRY_INFO!$I16=1,$F16<>0),IF(COUNTRY_INFO!M16>=(COUNTRY_INFO!F16+COUNTRY_INFO!G16),COUNTRY_INFO!F16+COUNTRY_INFO!G16,COUNTRY_INFO!$M16), 0)) -> 591903 | J16: 591903 | K16: 0 | L16: 0 | M16: 1657328.4 | N16: 1657328.4 | O16: 0 | P16: 1657328.4 | Q16: 3315
A17: =IF(INTRO!$E$39="Non-endemic"," ",IF(COUNTRY_INFO!A17=0," ",COUNTRY_INFO!A17)) -> Sierra Leone | B17: =IF(INTRO!$E$39="Non-endemic"," ",IF(COUNTRY_INFO!B17=0," ",COUNTRY_INFO!B17)) -> NORTHERN | C17: =IF(INTRO!$E$39="Non-endemic"," ",IF(COUNTRY_INFO!C17=0," ",COUNTRY_INFO!C17)) -> TONKOLILI | D17: =IF(INTRO!$E$39="Non-endemic",0,IF(INTRO!$E$39="Endemic but PC is not required",IF(COUNTRY_INFO!$H17=1,COUNTRY_INFO!F17+COUNTRY_INFO!G17,0),IF(COUNTRY_INFO!$H17=1,COUNTRY_INFO!F17+COUNTRY_INFO!G17,IF(COUNTRY_INFO!$I17=1,IF(COUNTRY_INFO!M17>=(COUNTRY_INFO!F17+COUNTRY_INFO!G17),COUNTRY_INFO!F17+COUNTRY_INFO!G17,COUNTRY_INFO!$M17),0)))) -> 494742 | E17: =IF(AND(INTRO!$E$39="Non-endemic",INTRO!$E$37="Non-endemic"),"Not required",IF(INTRO!$E$39="Non-endemic","Treat with DEC",COUNTRY_INFO!P17)) -> 0 | F17: =IF(INTRO!$E$39<>"Non-endemic",COUNTRY_INFO!Q17,"Not required") -> 1 | G17: =IF(COUNTRY_INFO!H17=1, IF($E17=1,$D17, 0),0) -> 0 | H17: =IF(INTRO!$E$39<>"Endemic",0, IF(AND(COUNTRY_INFO!$I17=1,$F17<>0),IF(COUNTRY_INFO!M17>=(COUNTRY_INFO!F17+COUNTRY_INFO!G17),COUNTRY_INFO!F17+COUNTRY_INFO!G17,COUNTRY_INFO!$M17), 0)) -> 494742 | J17: 494742 | K17: 0 | L17: 1385277.6 | M17: 0 | N17: 1385277.6 | O17: 0 | P17: 1385277.6 | Q17: 2771
A18: =IF(INTRO!$E$39="Non-endemic"," ",IF(COUNTRY_INFO!A18=0," ",COUNTRY_INFO!A18)) -> Sierra Leone | B18: =IF(INTRO!$E$39="Non-endemic"," ",IF(COUNTRY_INFO!B18=0," ",COUNTRY_INFO!B18)) -> NORTHERN | C18: =IF(INTRO!$E$39="Non-endemic"," ",IF(COUNTRY_INFO!C18=0," ",COUNTRY_INFO!C18)) -> PORT LOKO | D18: =IF(INTRO!$E$39="Non-endemic",0,IF(INTRO!$E$39="Endemic but PC is not required",IF(COUNTRY_INFO!$H18=1,COUNTRY_INFO!F18+COUNTRY_INFO!G18,0),IF(COUNTRY_INFO!$H18=1,COUNTRY_INFO!F18+COUNTRY_INFO!G18,IF(COUNTRY_INFO!$I18=1,IF(COUNTRY_INFO!M18>=(COUNTRY_INFO!F18+COUNTRY_INFO!G18),COUNTRY_INFO!F18+COUNTRY_INFO!G18,COUNTRY_INFO!$M18),0)))) -> 572259 | E18: =IF(AND(INTRO!$E$39="Non-endemic",INTRO!$E$37="Non-endemic"),"Not required",IF(INTRO!$E$39="Non-endemic","Treat with DEC",COUNTRY_INFO!P18)) -> 0 | F18: =IF(INTRO!$E$39<>"Non-endemic",COUNTRY_INFO!Q18,"Not required") -> 1 | G18: =IF(COUNTRY_INFO!H18=1, IF($E18=1,$D18, 0),0) -> 0 | H18: =IF(INTRO!$E$39<>"Endemic",0, IF(AND(COUNTRY_INFO!$I18=1,$F18<>0),IF(COUNTRY_INFO!M18>=(COUNTRY_INFO!F18+COUNTRY_INFO!G18),COUNTRY_INFO!F18+COUNTRY_INFO!G18,COUNTRY_INFO!$M18), 0)) -> 572259 | J18: 572259 | K18: 0 | L18: 1602325.2 | M18: 0 | N18: 1602325.2 | O18: 0 | P18: 1602325.2 | Q18: 3205
A19: =IF(INTRO!$E$39="Non-endemic"," ",IF(COUNTRY_INFO!A19=0," ",COUNTRY_INFO!A19)) -> Sierra Leone | B19: =IF(INTRO!$E$39="Non-endemic"," ",IF(COUNTRY_INFO!B19=0," ",COUNTRY_INFO!B19)) -> NORTHERN | C19: =IF(INTRO!$E$39="Non-endemic"," ",IF(COUNTRY_INFO!C19=0," ",COUNTRY_INFO!C19)) -> KOINADUGU | D19: =IF(INTRO!$E$39="Non-endemic",0,IF(INTRO!$E$39="Endemic but PC is not required",IF(COUNTRY_INFO!$H19=1,COUNTRY_INFO!F19+COUNTRY_INFO!G19,0),IF(COUNTRY_INFO!$H19=1,COUNTRY_INFO!F19+COUNTRY_INFO!G19,IF(COUNTRY_INFO!$I19=1,IF(COUNTRY_INFO!M19>=(COUNTRY_INFO!F19+COUNTRY_INFO!G19),COUNTRY_INFO!F19+COUNTRY_INFO!G19,COUNTRY_INFO!$M19),0)))) -> 460099 | E19: =IF(AND(INTRO!$E$39="Non-endemic",INTRO!$E$37="Non-endemic"),"Not required",IF(INTRO!$E$39="Non-endemic","Treat with DEC",COUNTRY_INFO!P19)) -> 1 | F19: =IF(INTRO!$E$39<>"Non-endemic",COUNTRY_INFO!Q19,"Not required") -> 1 | G19: =IF(COUNTRY_INFO!H19=1, IF($E19=1,$D19, 0),0) -> 460099 | H19: =IF(INTRO!$E$39<>"Endemic",0, IF(AND(COUNTRY_INFO!$I19=1,$F19<>0),IF(COUNTRY_INFO!M19>=(COUNTRY_INFO!F19+COUNTRY_INFO!G19),COUNTRY_INFO!F19+COUNTRY_INFO!G19,COUNTRY_INFO!$M19), 0)) -> 460099 | J19: 460099 | K19: 0 | L19: 0 | M19: 1288277.2 | N19: 1288277.2 | O19: 0 | P19: 1288277.2 | Q19: 2577
A20: =IF(INTRO!$E$39="Non-endemic"," ",IF(COUNTRY_INFO!A20=0," ",COUNTRY_INFO!A20)) -> Sierra Leone | B20: =IF(INTRO!$E$39="Non-endemic"," ",IF(COUNTRY_INFO!B20=0," ",COUNTRY_INFO!B20)) -> NORTHERN | C20: =IF(INTRO!$E$39="Non-endemic"," ",IF(COUNTRY_INFO!C20=0," ",COUNTRY_INFO!C20)) -> KAMBIA | D20: =IF(INTRO!$E$39="Non-endemic",0,IF(INTRO!$E$39="Endemic but PC is not required",IF(COUNTRY_INFO!$H20=1,COUNTRY_INFO!F20+COUNTRY_INFO!G20,0),IF(COUNTRY_INFO!$H20=1,COUNTRY_INFO!F20+COUNTRY_INFO!G20,IF(COUNTRY_INFO!$I20=1,IF(COUNTRY_INFO!M20>=(COUNTRY_INFO!F20+COUNTRY_INFO!G20),COUNTRY_INFO!F20+COUNTRY_INFO!G20,COUNTRY_INFO!$M20),0)))) -> 339174 | E20: =IF(AND(INTRO!$E$39="Non-endemic",INTRO!$E$37="Non-endemic"),"Not required",IF(INTRO!$E$39="Non-endemic","Treat with DEC",COUNTRY_INFO!P20)) -> 0 | F20: =IF(INTRO!$E$39<>"Non-endemic",COUNTRY_INFO!Q20,"Not required") -> 1 | G20: =IF(COUNTRY_INFO!H20=1, IF($E20=1,$D20, 0),0) -> 0 | H20: =IF(INTRO!$E$39<>"Endemic",0, IF(AND(COUNTRY_INFO!$I20=1,$F20<>0),IF(COUNTRY_INFO!M20>=(COUNTRY_INFO!F20+COUNTRY_INFO!G20),COUNTRY_INFO!F20+COUNTRY_INFO!G20,COUNTRY_INFO!$M20), 0)) -> 339174 | J20: 339174 | K20: 0 | L20: 949687.2 | M20: 0 | N20: 949687.2 | O20: 0 | P20: 949687.2 | Q20: 1900
A21: =IF(INTRO!$E$39="Non-endemic"," ",IF(COUNTRY_INFO!A21=0," ",COUNTRY_INFO!A21)) -> Sierra Leone | B21: =IF(INTRO!$E$39="Non-endemic"," ",IF(COUNTRY_INFO!B21=0," ",COUNTRY_INFO!B21)) -> WESTERN | C21: =IF(INTRO!$E$39="Non-endemic"," ",IF(COUNTRY_INFO!C21=0," ",COUNTRY_INFO!C21)) -> WESTERN RURAL | D21: =IF(INTRO!$E$39="Non-endemic",0,IF(INTRO!$E$39="Endemic but PC is not required",IF(COUNTRY_INFO!$H21=1,COUNTRY_INFO!F21+COUNTRY_INFO!G21,0),IF(COUNTRY_INFO!$H21=1,COUNTRY_INFO!F21+COUNTRY_INFO!G21,IF(COUNTRY_INFO!$I21=1,IF(COUNTRY_INFO!M21>=(COUNTRY_INFO!F21+COUNTRY_INFO!G21),COUNTRY_INFO!F21+COUNTRY_INFO!G21,COUNTRY_INFO!$M21),0)))) -> 455293 | E21: =IF(AND(INTRO!$E$39="Non-endemic",INTRO!$E$37="Non-endemic"),"Not required",IF(INTRO!$E$39="Non-endemic","Treat with DEC",COUNTRY_INFO!P21)) -> 1 | F21: =IF(INTRO!$E$39<>"Non-endemic",COUNTRY_INFO!Q21,"Not required") -> 0 | G21: =IF(COUNTRY_INFO!H21=1, IF($E21=1,$D21, 0),0) -> 455293 | H21: =IF(INTRO!$E$39<>"Endemic",0, IF(AND(COUNTRY_INFO!$I21=1,$F21<>0),IF(COUNTRY_INFO!M21>=(COUNTRY_INFO!F21+COUNTRY_INFO!G21),COUNTRY_INFO!F21+COUNTRY_INFO!G21,COUNTRY_INFO!$M21), 0)) -> 0 | J21: 0 | K21: 1274820.4 | L21: 0 | M21: 0 | N21: 1274820.4 | O21: 0 | P21: 1274820.4 | Q21: 2550
A22: =IF(INTRO!$E$39="Non-endemic"," ",IF(COUNTRY_INFO!A22=0," ",COUNTRY_INFO!A22)) -> Sierra Leone | B22: =IF(INTRO!$E$39="Non-endemic"," ",IF(COUNTRY_INFO!B22=0," ",COUNTRY_INFO!B22)) -> WESTERN | C22: =IF(INTRO!$E$39="Non-endemic"," ",IF(COUNTRY_INFO!C22=0," ",COUNTRY_INFO!C22)) -> WESTERN URBAN | D22: =IF(INTRO!$E$39="Non-endemic",0,IF(INTRO!$E$39="Endemic but PC is not required",IF(COUNTRY_INFO!$H22=1,COUNTRY_INFO!F22+COUNTRY_INFO!G22,0),IF(COUNTRY_INFO!$H22=1,COUNTRY_INFO!F22+COUNTRY_INFO!G22,IF(COUNTRY_INFO!$I22=1,IF(COUNTRY_INFO!M22>=(COUNTRY_INFO!F22+COUNTRY_INFO!G22),COUNTRY_INFO!F22+COUNTRY_INFO!G22,COUNTRY_INFO!$M22),0)))) -> 0 | E22: =IF(AND(INTRO!$E$39="Non-endemic",INTRO!$E$37="Non-endemic"),"Not required",IF(INTRO!$E$39="Non-endemic","Treat with DEC",COUNTRY_INFO!P22)) -> 0 | F22: =IF(INTRO!$E$39<>"Non-endemic",COUNTRY_INFO!Q22,"Not required") -> 0 | G22: =IF(COUNTRY_INFO!H22=1, IF($E22=1,$D22, 0),0) -> 0 | H22: =IF(INTRO!$E$39<>"Endemic",0, IF(AND(COUNTRY_INFO!$I22=1,$F22<>0),IF(COUNTRY_INFO!M22>=(COUNTRY_INFO!F22+COUNTRY_INFO!G22),COUNTRY_INFO!F22+COUNTRY_INFO!G22,COUNTRY_INFO!$M22), 0)) -> 0 | J22: 0 | K22: 0 | L22: 0 | M22: 0 | N22: 0 | O22: 0 | P22: 0 | Q22: 0

Sheet IVM+ (hidden)
A1: Ivermectin (IVM) for IDA therapy
A2: Administrative structure, eligible population by age group, treatment plan and information about tablets
A4: TOTAL | E4: =SUM(E$9:E$1000) -> 0 | F4: 0 | G4: 0 | H4: 0 | I4: 0
A6: Country administrative structure | D6: Treatment plan | E6: Population targeted for treatment with IVM (IDA therapy) | F6: Ivermectin (IVM)
A7: Country | B7: Province/State | C7: District | D7: LF | F7: Total required | G7: Remaining in stock | H7: Tablets to be procured | I7: Bottles (3mg) 500 tablets
A9: =IF(AND(INTRO!$E$37="Endemic",INTRO!$E$39="Non-endemic"),IF(COUNTRY_INFO!A9=0," ",COUNTRY_INFO!A9)," ") ->  | B9: =IF(AND(INTRO!$E$37="Endemic",INTRO!$E$39="Non-endemic"),IF(COUNTRY_INFO!B9=0," ",COUNTRY_INFO!B9)," ") ->  | C9: =IF(AND(INTRO!$E$37="Endemic",INTRO!$E$39="Non-endemic"),IF(COUNTRY_INFO!C9=0," ",COUNTRY_INFO!C9)," ") ->  | D9: =IF(COUNTRY_INFO!T9<>"",COUNTRY_INFO!P9,0) -> 0 | E9: =IF(AND(COUNTRY_INFO!T9<>"",COUNTRY_INFO!$H9=1),COUNTRY_INFO!F9+COUNTRY_INFO!G9,0) -> 0 | F9: =E9*2.8 -> 0 | H9: =IF($F9>$G9,$F9-$G9,0) -> 0 | I9: =ROUNDUP($F9/500,0) -> 0
A10: =IF(AND(INTRO!$E$37="Endemic",INTRO!$E$39="Non-endemic"),IF(COUNTRY_INFO!A10=0," ",COUNTRY_INFO!A10)," ") ->  | B10: =IF(AND(INTRO!$E$37="Endemic",INTRO!$E$39="Non-endemic"),IF(COUNTRY_INFO!B10=0," ",COUNTRY_INFO!B10)," ") ->  | C10: =IF(AND(INTRO!$E$37="Endemic",INTRO!$E$39="Non-endemic"),IF(COUNTRY_INFO!C10=0," ",COUNTRY_INFO!C10)," ") ->  | D10: =IF(COUNTRY_INFO!T10<>"",COUNTRY_INFO!P10,0) -> 0 | E10: =IF(AND(COUNTRY_INFO!T10<>"",COUNTRY_INFO!$H10=1),COUNTRY_INFO!F10+COUNTRY_INFO!G10,0) -> 0 | F10: 0 | H10: 0 | I10: 0
A11: =IF(AND(INTRO!$E$37="Endemic",INTRO!$E$39="Non-endemic"),IF(COUNTRY_INFO!A11=0," ",COUNTRY_INFO!A11)," ") ->  | B11: =IF(AND(INTRO!$E$37="Endemic",INTRO!$E$39="Non-endemic"),IF(COUNTRY_INFO!B11=0," ",COUNTRY_INFO!B11)," ") ->  | C11: =IF(AND(INTRO!$E$37="Endemic",INTRO!$E$39="Non-endemic"),IF(COUNTRY_INFO!C11=0," ",COUNTRY_INFO!C11)," ") ->  | D11: =IF(COUNTRY_INFO!T11<>"",COUNTRY_INFO!P11,0) -> 0 | E11: =IF(AND(COUNTRY_INFO!T11<>"",COUNTRY_INFO!$H11=1),COUNTRY_INFO!F11+COUNTRY_INFO!G11,0) -> 0 | F11: 0 | H11: 0 | I11: 0
A12: =IF(AND(INTRO!$E$37="Endemic",INTRO!$E$39="Non-endemic"),IF(COUNTRY_INFO!A12=0," ",COUNTRY_INFO!A12)," ") ->  | B12: =IF(AND(INTRO!$E$37="Endemic",INTRO!$E$39="Non-endemic"),IF(COUNTRY_INFO!B12=0," ",COUNTRY_INFO!B12)," ") ->  | C12: =IF(AND(INTRO!$E$37="Endemic",INTRO!$E$39="Non-endemic"),IF(COUNTRY_INFO!C12=0," ",COUNTRY_INFO!C12)," ") ->  | D12: =IF(COUNTRY_INFO!T12<>"",COUNTRY_INFO!P12,0) -> 0 | E12: =IF(AND(COUNTRY_INFO!T12<>"",COUNTRY_INFO!$H12=1),COUNTRY_INFO!F12+COUNTRY_INFO!G12,0) -> 0 | F12: 0 | H12: 0 | I12: 0
A13: =IF(AND(INTRO!$E$37="Endemic",INTRO!$E$39="Non-endemic"),IF(COUNTRY_INFO!A13=0," ",COUNTRY_INFO!A13)," ") ->  | B13: =IF(AND(INTRO!$E$37="Endemic",INTRO!$E$39="Non-endemic"),IF(COUNTRY_INFO!B13=0," ",COUNTRY_INFO!B13)," ") ->  | C13: =IF(AND(INTRO!$E$37="Endemic",INTRO!$E$39="Non-endemic"),IF(COUNTRY_INFO!C13=0," ",COUNTRY_INFO!C13)," ") ->  | D13: =IF(COUNTRY_INFO!T13<>"",COUNTRY_INFO!P13,0) -> 0 | E13: =IF(AND(COUNTRY_INFO!T13<>"",COUNTRY_INFO!$H13=1),COUNTRY_INFO!F13+COUNTRY_INFO!G13,0) -> 0 | F13: 0 | H13: 0 | I13: 0
A14: =IF(AND(INTRO!$E$37="Endemic",INTRO!$E$39="Non-endemic"),IF(COUNTRY_INFO!A14=0," ",COUNTRY_INFO!A14)," ") ->  | B14: =IF(AND(INTRO!$E$37="Endemic",INTRO!$E$39="Non-endemic"),IF(COUNTRY_INFO!B14=0," ",COUNTRY_INFO!B14)," ") ->  | C14: =IF(AND(INTRO!$E$37="Endemic",INTRO!$E$39="Non-endemic"),IF(COUNTRY_INFO!C14=0," ",COUNTRY_INFO!C14)," ") ->  | D14: =IF(COUNTRY_INFO!T14<>"",COUNTRY_INFO!P14,0) -> 0 | E14: =IF(AND(COUNTRY_INFO!T14<>"",COUNTRY_INFO!$H14=1),COUNTRY_INFO!F14+COUNTRY_INFO!G14,0) -> 0 | F14: 0 | H14: 0 | I14: 0
A15: =IF(AND(INTRO!$E$37="Endemic",INTRO!$E$39="Non-endemic"),IF(COUNTRY_INFO!A15=0," ",COUNTRY_INFO!A15)," ") ->  | B15: =IF(AND(INTRO!$E$37="Endemic",INTRO!$E$39="Non-endemic"),IF(COUNTRY_INFO!B15=0," ",COUNTRY_INFO!B15)," ") ->  | C15: =IF(AND(INTRO!$E$37="Endemic",INTRO!$E$39="Non-endemic"),IF(COUNTRY_INFO!C15=0," ",COUNTRY_INFO!C15)," ") ->  | D15: =IF(COUNTRY_INFO!T15<>"",COUNTRY_INFO!P15,0) -> 0 | E15: =IF(AND(COUNTRY_INFO!T15<>"",COUNTRY_INFO!$H15=1),COUNTRY_INFO!F15+COUNTRY_INFO!G15,0) -> 0 | F15: 0 | H15: 0 | I15: 0
A16: =IF(AND(INTRO!$E$37="Endemic",INTRO!$E$39="Non-endemic"),IF(COUNTRY_INFO!A16=0," ",COUNTRY_INFO!A16)," ") ->  | B16: =IF(AND(INTRO!$E$37="Endemic",INTRO!$E$39="Non-endemic"),IF(COUNTRY_INFO!B16=0," ",COUNTRY_INFO!B16)," ") ->  | C16: =IF(AND(INTRO!$E$37="Endemic",INTRO!$E$39="Non-endemic"),IF(COUNTRY_INFO!C16=0," ",COUNTRY_INFO!C16)," ") ->  | D16: =IF(COUNTRY_INFO!T16<>"",COUNTRY_INFO!P16,0) -> 0 | E16: =IF(AND(COUNTRY_INFO!T16<>"",COUNTRY_INFO!$H16=1),COUNTRY_INFO!F16+COUNTRY_INFO!G16,0) -> 0 | F16: 0 | H16: 0 | I16: 0
A17: =IF(AND(INTRO!$E$37="Endemic",INTRO!$E$39="Non-endemic"),IF(COUNTRY_INFO!A17=0," ",COUNTRY_INFO!A17)," ") ->  | B17: =IF(AND(INTRO!$E$37="Endemic",INTRO!$E$39="Non-endemic"),IF(COUNTRY_INFO!B17=0," ",COUNTRY_INFO!B17)," ") ->  | C17: =IF(AND(INTRO!$E$37="Endemic",INTRO!$E$39="Non-endemic"),IF(COUNTRY_INFO!C17=0," ",COUNTRY_INFO!C17)," ") ->  | D17: =IF(COUNTRY_INFO!T17<>"",COUNTRY_INFO!P17,0) -> 0 | E17: =IF(AND(COUNTRY_INFO!T17<>"",COUNTRY_INFO!$H17=1),COUNTRY_INFO!F17+COUNTRY_INFO!G17,0) -> 0 | F17: 0 | H17: 0 | I17: 0
A18: =IF(AND(INTRO!$E$37="Endemic",INTRO!$E$39="Non-endemic"),IF(COUNTRY_INFO!A18=0," ",COUNTRY_INFO!A18)," ") ->  | B18: =IF(AND(INTRO!$E$37="Endemic",INTRO!$E$39="Non-endemic"),IF(COUNTRY_INFO!B18=0," ",COUNTRY_INFO!B18)," ") ->  | C18: =IF(AND(INTRO!$E$37="Endemic",INTRO!$E$39="Non-endemic"),IF(COUNTRY_INFO!C18=0," ",COUNTRY_INFO!C18)," ") ->  | D18: =IF(COUNTRY_INFO!T18<>"",COUNTRY_INFO!P18,0) -> 0 | E18: =IF(AND(COUNTRY_INFO!T18<>"",COUNTRY_INFO!$H18=1),COUNTRY_INFO!F18+COUNTRY_INFO!G18,0) -> 0 | F18: 0 | H18: 0 | I18: 0
A19: =IF(AND(INTRO!$E$37="Endemic",INTRO!$E$39="Non-endemic"),IF(COUNTRY_INFO!A19=0," ",COUNTRY_INFO!A19)," ") ->  | B19: =IF(AND(INTRO!$E$37="Endemic",INTRO!$E$39="Non-endemic"),IF(COUNTRY_INFO!B19=0," ",COUNTRY_INFO!B19)," ") ->  | C19: =IF(AND(INTRO!$E$37="Endemic",INTRO!$E$39="Non-endemic"),IF(COUNTRY_INFO!C19=0," ",COUNTRY_INFO!C19)," ") ->  | D19: =IF(COUNTRY_INFO!T19<>"",COUNTRY_INFO!P19,0) -> 0 | E19: =IF(AND(COUNTRY_INFO!T19<>"",COUNTRY_INFO!$H19=1),COUNTRY_INFO!F19+COUNTRY_INFO!G19,0) -> 0 | F19: 0 | H19: 0 | I19: 0
A20: =IF(AND(INTRO!$E$37="Endemic",INTRO!$E$39="Non-endemic"),IF(COUNTRY_INFO!A20=0," ",COUNTRY_INFO!A20)," ") ->  | B20: =IF(AND(INTRO!$E$37="Endemic",INTRO!$E$39="Non-endemic"),IF(COUNTRY_INFO!B20=0," ",COUNTRY_INFO!B20)," ") ->  | C20: =IF(AND(INTRO!$E$37="Endemic",INTRO!$E$39="Non-endemic"),IF(COUNTRY_INFO!C20=0," ",COUNTRY_INFO!C20)," ") ->  | D20: =IF(COUNTRY_INFO!T20<>"",COUNTRY_INFO!P20,0) -> 0 | E20: =IF(AND(COUNTRY_INFO!T20<>"",COUNTRY_INFO!$H20=1),COUNTRY_INFO!F20+COUNTRY_INFO!G20,0) -> 0 | F20: 0 | H20: 0 | I20: 0
A21: =IF(AND(INTRO!$E$37="Endemic",INTRO!$E$39="Non-endemic"),IF(COUNTRY_INFO!A21=0," ",COUNTRY_INFO!A21)," ") ->  | B21: =IF(AND(INTRO!$E$37="Endemic",INTRO!$E$39="Non-endemic"),IF(COUNTRY_INFO!B21=0," ",COUNTRY_INFO!B21)," ") ->  | C21: =IF(AND(INTRO!$E$37="Endemic",INTRO!$E$39="Non-endemic"),IF(COUNTRY_INFO!C21=0," ",COUNTRY_INFO!C21)," ") ->  | D21: =IF(COUNTRY_INFO!T21<>"",COUNTRY_INFO!P21,0) -> 0 | E21: =IF(AND(COUNTRY_INFO!T21<>"",COUNTRY_INFO!$H21=1),COUNTRY_INFO!F21+COUNTRY_INFO!G21,0) -> 0 | F21: 0 | H21: 0 | I21: 0
A22: =IF(AND(INTRO!$E$37="Endemic",INTRO!$E$39="Non-endemic"),IF(COUNTRY_INFO!A22=0," ",COUNTRY_INFO!A22)," ") ->  | B22: =IF(AND(INTRO!$E$37="Endemic",INTRO!$E$39="Non-endemic"),IF(COUNTRY_INFO!B22=0," ",COUNTRY_INFO!B22)," ") ->  | C22: =IF(AND(INTRO!$E$37="Endemic",INTRO!$E$39="Non-endemic"),IF(COUNTRY_INFO!C22=0," ",COUNTRY_INFO!C22)," ") ->  | D22: =IF(COUNTRY_INFO!T22<>"",COUNTRY_INFO!P22,0) -> 0 | E22: =IF(AND(COUNTRY_INFO!T22<>"",COUNTRY_INFO!$H22=1),COUNTRY_INFO!F22+COUNTRY_INFO!G22,0) -> 0 | F22: 0 | H22: 0 | I22: 0

Sheet SUMMARY
B2: Joint request for selected PC medicines v.3.1
B4: This form constitutes an official government request to WHO for the supply of the PC medicines. It can be submitted any time before 15 August of the current year for distribution of medicines during the following year, but at least 6-8 months before the planned PC intervention(s) to allow time for reviewing and approval of the request, placing order, manufacturing PC medicines and shipment to the country.
B6: Country | C6: =IF(INTRO!$E$33<>0,INTRO!$E$33," ") -> Sierra Leone | G6: Year | H6: =IF(INTRO!$E$35<>0,INTRO!$E$35," ") -> 2021
B8: Information on PC medicines requested to WHO
B10: PC medicine | C10: Number of tablets | G10: Total number of bottles
C11: Required | D11: In stock | E11: In pipeline | F11: Requested | G11: Required | H11: Requested
B12: Albendazole for LF | C12: 2858692 | D12: 258094 | F12: =IF(C12>(D12+E12),C12-D12-E12, 0) -> 2600598 | G12: =IF($C12=0,0, IF($B12="Albendazole for LF", IF($C12=ALB_MBD!$I$4,ALB_MBD!$U$4,ROUNDUP($C12/200,0)), IF($B12="Albendazole for STH (SAC)", IF($C12=ALB_MBD!$L$4,ALB_MBD!$X$4,ROUNDUP($C12/200,0)), IF($B12="Mebendazole (SAC)", IF($C12=ALB_MBD!$P$4,ALB_MBD!$AA$4,ROUNDUP($C12/150,0)), IF($B12="Diethylcarbamazine citrate", IF($C12=DEC!$J$4,DEC!$M$4,ROUNDUP($C12/1000,0)), IF($B12="Praziquantel (SAC)", IF($C12=PZQ!$O$4,PZQ!$R$4,ROUNDUP($C12/1000,0)), IF($B12="Ivermectin", IF($C12=IVM!$N$4,IVM!$Q$4,$C12/500+0.49),0))))))) -> 14296 | H12: =IF($F12=0,0,IF(OR($B12="Albendazole for LF",$B12="Albendazole for STH (SAC)"),$G12-ROUNDUP(($E12+$D12)/200,0),IF($B12="Ivermectin",$G12-ROUNDUP(($E12+$D12)/500,0),IF($B12="Mebendazole (SAC)",$G12-ROUNDUP(($E12+$D12)/150,0),$G12-ROUNDUP(($E12+$D12)/1000,0))))) -> 13005
B13: Albendazole for STH (SAC) | C13: 1385052 | F13: 1385052 | G13: =IF($C13=0,0, IF($B13="Albendazole for LF", IF($C13=ALB_MBD!$I$4,ALB_MBD!$U$4,ROUNDUP($C13/200,0)), IF($B13="Albendazole for STH (SAC)", IF($C13=ALB_MBD!$L$4,ALB_MBD!$X$4,ROUNDUP($C13/200,0)), IF($B13="Mebendazole (SAC)", IF($C13=ALB_MBD!$P$4,ALB_MBD!$AA$4,ROUNDUP($C13/150,0)), IF($B13="Diethylcarbamazine citrate", IF($C13=DEC!$J$4,DEC!$M$4,ROUNDUP($C13/1000,0)), IF($B13="Praziquantel (SAC)", IF($C13=PZQ!$O$4,PZQ!$R$4,ROUNDUP($C13/1000,0)), IF($B13="Ivermectin", IF($C13=IVM!$N$4,IVM!$Q$4,$C13/500+0.49),0))))))) -> 6930 | H13: 6930
B14: Ivermectin | C14: 17202147.2 | D14: 1913676 | F14: 15288471.2 | G14: =IF($C14=0,0, IF($B14="Albendazole for LF", IF($C14=ALB_MBD!$I$4,ALB_MBD!$U$4,ROUNDUP($C14/200,0)), IF($B14="Albendazole for STH (SAC)", IF($C14=ALB_MBD!$L$4,ALB_MBD!$X$4,ROUNDUP($C14/200,0)), IF($B14="Mebendazole (SAC)", IF($C14=ALB_MBD!$P$4,ALB_MBD!$AA$4,ROUNDUP($C14/150,0)), IF($B14="Diethylcarbamazine citrate", IF($C14=DEC!$J$4,DEC!$M$4,ROUNDUP($C14/1000,0)), IF($B14="Praziquantel (SAC)", IF($C14=PZQ!$O$4,PZQ!$R$4,ROUNDUP($C14/1000,0)), IF($B14="Ivermectin", IF($C14=IVM!$N$4,IVM!$Q$4,$C14/500+0.49),0))))))) -> 34409 | H14: 30581
B15: Praziquantel (SAC) | C15: 2178273.75 | D15: 0 | F15: 2178273.75 | G15: =IF($C15=0,0, IF($B15="Albendazole for LF", IF($C15=ALB_MBD!$I$4,ALB_MBD!$U$4,ROUNDUP($C15/200,0)), IF($B15="Albendazole for STH (SAC)", IF($C15=ALB_MBD!$L$4,ALB_MBD!$X$4,ROUNDUP($C15/200,0)), IF($B15="Mebendazole (SAC)", IF($C15=ALB_MBD!$P$4,ALB_MBD!$AA$4,ROUNDUP($C15/150,0)), IF($B15="Diethylcarbamazine citrate", IF($C15=DEC!$J$4,DEC!$M$4,ROUNDUP($C15/1000,0)), IF($B15="Praziquantel (SAC)", IF($C15=PZQ!$O$4,PZQ!$R$4,ROUNDUP($C15/1000,0)), IF($B15="Ivermectin", IF($C15=IVM!$N$4,IVM!$Q$4,$C15/500+0.49),0))))))) -> 2182 | H15: 2182
C16: 0 | D16: 0 | F16: 0 | G16: =IF($C16=0,0, IF($B16="Albendazole for LF", IF($C16=ALB_MBD!$I$4,ALB_MBD!$U$4,ROUNDUP($C16/200,0)), IF($B16="Albendazole for STH (SAC)", IF($C16=ALB_MBD!$L$4,ALB_MBD!$X$4,ROUNDUP($C16/200,0)), IF($B16="Mebendazole (SAC)", IF($C16=ALB_MBD!$P$4,ALB_MBD!$AA$4,ROUNDUP($C16/150,0)), IF($B16="Diethylcarbamazine citrate", IF($C16=DEC!$J$4,DEC!$M$4,ROUNDUP($C16/1000,0)), IF($B16="Praziquantel (SAC)", IF($C16=PZQ!$O$4,PZQ!$R$4,ROUNDUP($C16/1000,0)), IF($B16="Ivermectin", IF($C16=IVM!$N$4,IVM!$Q$4,$C16/500+0.49),0))))))) -> 0 | H16: 0
C17: 0 | D17: 0 | F17: 0 | G17: =IF($C17=0,0, IF($B17="Albendazole for LF", IF($C17=ALB_MBD!$I$4,ALB_MBD!$U$4,ROUNDUP($C17/200,0)), IF($B17="Albendazole for STH (SAC)", IF($C17=ALB_MBD!$L$4,ALB_MBD!$X$4,ROUNDUP($C17/200,0)), IF($B17="Mebendazole (SAC)", IF($C17=ALB_MBD!$P$4,ALB_MBD!$AA$4,ROUNDUP($C17/150,0)), IF($B17="Diethylcarbamazine citrate", IF($C17=DEC!$J$4,DEC!$M$4,ROUNDUP($C17/1000,0)), IF($B17="Praziquantel (SAC)", IF($C17=PZQ!$O$4,PZQ!$R$4,ROUNDUP($C17/1000,0)), IF($B17="Ivermectin", IF($C17=IVM!$N$4,IVM!$Q$4,$C17/500+0.49),0))))))) -> 0 | H17: 0
B19: Number of people to be treated with donated medicine ( see User Guide for details )
B21: Disease | G21: Round 1 | H21: Round 2
B22: Lymphatic filariasis | C22: These figures are estimated only for targeted age groups to be treated with donated medicines in areas where treatment for specific disease is required | G22: 2858692
B23: Soil-transmitted helminthiases | G23: 2109574 | H23: 138978
B24: Onchocerciasis | G24: 5688331 | H24: 0
B25: Schistosomiasis | G25: 871309.5
B29: Information on planned PC interventions
B31: PC medicine | C31: Planned date of the 1st round of PC | E31: Planned date of the 2nd round of PC | G31: Date by which the medicine should arrive to the national warehouse
B32: Albendazole for LF | C32: June | D32: 2021 | G32: March | H32: 2021
B33: Albendazole for STH | C33: June | D33: 2021 | G33: March | H33: 2021
B34: Ivermectin | C34: June | D34: 2021 | G34: March | H34: 2021
B35: Praziquantel | C35: March | D35: 2021 | G35: January | H35: 2021
B39: Information on PC medicines for treatment of population not targeted with current donation through WHO
B41: PC medicine | C41: Age group | D41: # of people | E41: # of tablets | F41: Specify source | H41: Status
B42: Praziquantel | C42: Adults | H42: Required
B43: Albendazole for STH | C43: Adults
B53: Checklist
B54: Submission
B55: What should be submitted?
B56: The supply of the requested medicines should be based on up-to-date epidemiological data, specific usage plans, and capacity for implementation. The following checklist ensures that all necessary forms and information are provided to WHO (in electronic format).
B57: Joint request for selected PC medicines
B58: Joint reporting form
B59: PC epidemiological data reporting form
B61: Availability of funding for implementation in the year for which the medicines are requested
B63: Diseases targeted for implementation | C63: Total treatments | D63: Funding secured for | E63: Source | H63: Amount
B64: =B22 -> Lymphatic filariasis | C64: =SUM(G22:H22) -> 2858692 | D64: ALL | E64: Helen Keller INTL | H64: YET TO PLAN
B65: =B23 -> Soil-transmitted helminthiases | C65: =SUM(G23:H23) -> 2248552 | D65: ALL | E65: Helen Keller INTL | H65: YET TO PLAN
B66: =B24 -> Onchocerciasis | C66: =SUM(G24:H24) -> 5688331 | D66: ALL | E66: Helen Keller INTL | H66: YET TO PLAN
B67: =B25 -> Schistosomiasis | C67: =SUM(G25:H25) -> 871309.5 | D67: ALL | E67: Helen Keller INTL | H67: YET TO PLAN
B69: Who should fill in the form?
B70: National NTD coordinator should compile all required information needed to complete the request form. In the absence of such a coordinator, specific programme managers should coordinate their respective part. The final single request must be approved by the Ministry of Health.
B72: Information on person(s) who has filled in the form
B74: Title | C74: Name | E74: Phone | G74: Email | H74: Date
B75: LF Programme Manager | C75: IBRAHIM KARGBO LABOUR | E75: 23278317788 | G75: karbolabour@gmail.com | H75: 2021-05-20
B76: Data Manager | C76: ABDULAI CONTEH | E76: 23276601498 | G76: abdulconteh2020@yahoo.com | H76: 2021-05-20
B80: The WHO recommends that all serious adverse events suspected to be associated with use of PC medicines should be reported in accordance with national Pharmacovigilance guidelines. In the absence of a national Pharmacovigilance system, contact the WHO Neglected Tropical Disease department for guidance.
B81: The WHO is committed to facilitate PC medicines donation with a free-of-charge supply of a) albendazole, mebendazole and praziquantel to the MoH’s national warehouse; and b) diethylcarbamazine citrate to the entry port/airport of recipient countries.
B82: The institution submitting the present request is responsible for a) arranging the offloading of the medicines from the truck and storing it in the national warehouse and subsequent shipment to the final distribution centres; b) for registering the donated medicine, if required, by the relevant national regulatory authorities; and c) for informing about any changes of their PC campaigns (e.g. postpone of the planned MDA date, replacement of NTD coordinator, etc.).
C83: I have read and accept WHO Data Sharing Policy
B84: Name and signature of NTD coordinator or Ministry of Health representative | D84: DR.IBRAHIM KARGBO- LABOUR
B85: Date: | D85: 2020-11-26
B87: Please complete information on shipment and consignee in the worksheet SHIPMENT. Any additional details related to this Request should be provided in the "Additional information" box in the worksheet SHIPMENT.
B88: Please send the national request (signed and in electronic format) to the concerned WR with copy to:
B89: WHO headquarters | C89: PC_JointForms@who.int
B90: WHO Regional Office | C90: Regional Advisor for NTD
B91: Mectizan donation program | C91: Dr Yao Sodahlon, email: ysodahlon@taskforce.org
B93: Please note that your request will be reviewed by an independent panel before approval. The information in this form, joint reporting form and PC epidemiological data reporting form are essential for WHO to ensure efficient usage of medicines. As part of its ongoing monitoring and evaluation activities, and to meet its contractual obligations to donors and other partners, WHO and its appointed agents reserve the right to periodically inspect stocks of the medicines at country level.

Sheet SHIPMENT
B2: Joint request for selected PC medicines v.3.1
B4: Country | C4: =IF(INTRO!$E$33<>0,INTRO!$E$33," ") -> Sierra Leone | G4: Year | H4: =IF(INTRO!$E$35<>0,INTRO!$E$35," ") -> 2021
B6: Information on shipment and consignee
B8: Albendazole for LF | C8: Consignee | F8: Delivery point / Final recipient if different from the consignee
B9: Name | C9: Liyosi, Mr Evans | F9: Dr IBRAHIM KARGBO LABOUR
B10: Department/Unit | C10: WHO REPRESENTATIVE | F10: NTD Programme Manager
B11: Organization | C11: WHO COUNTRY OFFICE SIERRA LEONE | F11: MoHS Freetown Sierra Leone
B12: Phone | C12: +232 22 233565 | F12: 23278317788
B13: Fax
B14: E-mail | C14: afwcosl@who.int | F14: kargbolabour@gmail.com
B15: Mailing address | C15: PO Box 529 Freetown, Sierra Leone | F15: NTD Programme, New England, Freetown,Sierra Leone
B17: Ivermectin | C17: Consignee | F17: Delivery point / Final recipient if different from the consignee
B18: Name | C18: Liyosi, Mr Evans | F18: Dr IBRAHIM KARGBO LABOUR
B19: Department/Unit | C19: WHO REPRESENTATIVE | F19: NTD Programme Manager
B20: Organization | C20: WHO COUNTRY OFFICE SIERRA LEONE | F20: MoHS Freetown Sierra Leone
B21: Phone | C21: +232 22 233565 | F21: 23278317788
B22: Fax
B23: E-mail | C23: afwcosl@who.int | F23: kargbolabour@gmail.com
B24: Mailing address | C24: PO Box 529 Freetown, Sierra Leone | F24: NTD Programme, New England, Freetown,Sierra Leone
B26: Praziquantel | C26: Consignee | F26: Delivery point / Final recipient if different from the consignee
B27: Name | C27: Liyosi, Mr Evans | F27: Dr IBRAHIM KARGBO LABOUR
B28: Department/Unit | C28: WHO REPRESENTATIVE | F28: NTD Programme Manager
B29: Organization | C29: WHO COUNTRY OFFICE SIERRA LEONE | F29: MoHS Freetown Sierra Leone
B30: Phone | C30: +232 22 233565 | F30: 23278317788
B31: Fax
B32: E-mail | C32: afwcosl@who.int | F32: kargbolabour@gmail.com
B33: Mailing address | C33: PO Box 529 Freetown, Sierra Leone | F33: NTD Programme, New England, Freetown,Sierra Leone
B36: Information on import requirements
B38: Is the Import Permit required? | H38: No
B39: How long does it take to obtain the Import Permit?
B40: Do you require any documents to be submitted together with the Import Permit application?
B41: If YES, please specify here
B42: Does the consignee have to get customs clearance before the shipment can proceed? | H42: No
B43: Is there any additional information may be helpful in ensuring timely clearance and delivery of medicines to your country? | H43: No
B44: If YES, please specify here
B46: Additional information

Sheet DATA_POLICY
B2: Joint request for selected PC medicines v.3.1
B4: Country | D4: =IF(INTRO!$E$33<>0,INTRO!$E$33," ") -> Sierra Leone | G4: Year | H4: =IF(INTRO!$E$35<>0,INTRO!$E$35," ") -> 2021
B7: WHO Data Sharing Policy statement
B9: Data are the basis for all sound public health actions and the benefits of data sharing are widely recognized, including scientific and public health benefits. Whenever possible, WHO wishes to promote the sharing of health data, including but not restricted to surveillance and epidemiological data.
B14: ="In this connection, and without prejudice to information sharing and publication pursuant to legally binding instruments, by providing data to WHO, the Ministry of Health of " & D4 & ":" -> In this connection, and without prejudice to information sharing and publication pursuant to legally binding instruments, by providing data to WHO, the Ministry of Health of Sierra Leone:
B18: Confirms that all data to be supplied to WHO hereunder have been collected in accordance with applicable national laws, including data protection laws aimed at protecting the confidentiality of identifiable persons;
B23: ="Agrees that WHO shall be entitled, subject always to measures to ensure the ethical and secure use of the data, and subject always to an appropriate acknowledgement of "&D4&":" -> Agrees that WHO shall be entitled, subject always to measures to ensure the ethical and secure use of the data, and subject always to an appropriate acknowledgement of Sierra Leone:
C27: to publish the data, stripped of any personal identifiers and make the Data available to any interested party on request (to the extent they have not, or not yet, been published by WHO) on terms that allow non-commercial, not-for-profit use of the Data for public health purposes (provided always that publication of the Data shall remain under the control of WHO); to use, compile, aggregate, evaluate and analyse the Data and publish and disseminate the results thereof in conjunction with WHO’s work and in accordance with the Organization’s policies and practices.
B39: =CONCATENATE("Except where data sharing and publication is required under legally binding instruments (IHR, WHO Nomenclature Regulations 1967, etc.), the Ministry of Health of ", D4," may in respect of certain data opt out of (any part of) the above," & " by notifying WHO thereof in writing at the following address, provided that any such notification shall clearly identify the data in question and clearly indicate the scope of the opt-out (in reference to the above), " & "and provided that specific reasons shall be given for the opt out.") -> Except where data sharing and publication is required under legally binding instruments (IHR, WHO Nomenclature Regulations 1967, etc.), the Ministry of Health of Sierra Leone may in respect of certain data opt out of (any part of) the above, by notifying WHO thereof in writing at the following address, provided that any such notification shall clearly identify the data in question and clearly indicate the scope of the opt-out (in reference to the above), and provided that specific reasons shall be given for the opt out.
